{"text_format":"1","workbook":"xlsx","n_sheets":14,"sheets":["FILL OUT FIRST - TOC","LEMA Eligibilty","FRINGE BENEFITS","LABOR","LEMA EQUIPMENT","RA EQUIPMENT","FEMA EQUIP.RATES","LEMA PER DIEM RATES","LEMA MATERIALS","RA MATERIALS","COST SUMMARY ROLL-UP","LEMA INVOICE","RA INVOICE","List Selections"],"not_rendered":{"charts":0,"images":8,"macros":0,"external_links":1,"defined_names":59,"comments":4,"pivot_tables":0},"unopened":[],"bounds":{"document_bytes":16777216,"sheet_cells":100000,"rows_first":2000,"rows_last":500,"rows_between":2000,"halvings":0,"cell_chars":16384,"cell_head_chars":4096},"cells_cut":0,"cells_raw":0,"read":"whole","date_system":"1900"}

{"sheet":"FILL OUT FIRST - TOC","index":0,"n_rows":21,"n_cols":6,"rows_kept":21,"cut":false,"hidden":false,"merged":[[2,1,2,2],[2,4,2,5],[0,4,1,4],[3,3,6,3],[7,3,17,3],[11,1,11,2],[6,4,6,5],[11,4,12,4]]}
[]
[]
[null,"TABLE OF CONTENTS\nCheck the box if included in PW package\nClick on title to link to sheet",null,null,"FILL OUT FIRST"]
[null,null,"Fringe Benefits","DISASTER \nDETAILS","Disaster Number (XXXX-DR-STATE):"]
[null,null,"Labor",null,"Applicant Name:"]
[null,null,"Equipment",null,"Category:","Law Enforcement Mutual Aid"]
[null,null,"Materials"]
[null,null,"Cost Summary Roll-Up","Agency Information","Prepared By:"," "]
[null,null,"Invoice",null,"Preparer Title:"," "]
[null,null,null,null,"Department:"," "]
[null,null,null,null,"County/Jurisdiction:"," "]
[null,"Back Up Documentation",null,null,"Mailing Address:"," "]
[null,null,"Time Sheets",null,null," "]
[null,null,"Receipts",null,"Office Phone | Fax Number:"," "]
[null,null,"Department/Agency Pay Policy",null,"Contact Email:"," "]
[null,null,"Post Event Agreement ",null,"Certified By & Title:"," "]
[null,null,"ICS 214/Activity Logs ",null,"Resource Type:","Law Enforcement Mutual Aid"]
[null,null,null,null,"If Other Specify:"]
[null,null,null,null,"LEMA Incident Period:"]
[null,null,null,null,"Federal Declaration Incident Period:"]
[null,null,null,null,"CDAA Incident Period: "]

{"sheet":"LEMA Eligibilty","index":1,"n_rows":68,"n_cols":2,"rows_kept":68,"cut":false,"hidden":false,"merged":[]}
[]
[]
[]
[null,"CalOES - Law Enforcement Mutual Aid Assistance (LEMA) Program"]
[]
[null,"Eligibility For Reimbursement"]
[]
[null,"In order to be eligible for reimbursement the resource must have been requested and not self deployed. The reimbursement period starts after the first 12 hours. All back up documentation must be provided. Depending on the Type of Mutual Aid Provided the expenses incurred may vary."]
[]
[]
[null,"Criteria"]
[]
[null,"1,  LEMA requested to preposition resources (doesn't require 12-hour grace period) undeclared events, "]
[null,"     or before declarations are known."]
[null,"2.  LEMA request is related to a State or Federally declared state of emergency."]
[null,"3.  LEMA is requested for a multi-jurisdiction event."]
[null,"4.  Major law enforcement action requiring extended or specialized LEMA."]
[null,"5.  LEMA for a mass casualty incident or extended mass causality operation."]
[null,"6.  Technology support or specialized resources to support LEMA response."]
[null," "]
[]
[null,"Eligible Costs"]
[]
[]
[null,"1.  Overtime for responding Deputy/Officer.*"]
[null,"2.  Overtime for backfill for responding Deputy/Officer overtime."]
[null,"3.  Lodging   **"]
[null,"4.  Per Diem  ***"]
[null,"5.  Mileage  ****"]
[null,"6.  Extraordinary equipment (aviation assets, rapid DNA machines, etc.)"]
[]
[null,"*       Overtime calculations cannot include worker's compensation."]
[null,"**      Lodging should be at the State rate for the area of the event whenever possible. All exceptions"]
[null,"         need to be explained. Rates can be found on the LEMA PER DIEM RATES Tab."]
[null,"***    Use the State rate that can be found on the LEMA PER DIEM RATES Tab."]
[null,"****   Use the Mileage rate that can be found on the LEMA Per DIEM Rates Tab. "]
[]
[]
[]
[null," "]
[null," "]
[]
[null," "]
[null," "]
[]
[]
[]
[]
[]
[]
[]
[]
[]
[]
[]
[]
[]
[null," "]
[null," "]
[null," "]
[null," "]
[null," "]
[null," "]
[null," "]
[null," "]
[null," "]
[null," "]
[null," "]

{"sheet":"FRINGE BENEFITS","index":2,"n_rows":63,"n_cols":10,"rows_kept":63,"cut":false,"hidden":false,"merged":[[52,2,53,4],[12,6,12,7],[20,6,20,7],[22,6,22,7],[23,9,23,10],[38,1,38,10],[49,2,50,9],[37,4,37,5],[40,1,44,11],[46,1,47,10],[37,6,37,7],[37,9,37,10],[28,9,28,10],[34,9,34,10],[34,6,34,7],[24,6,24,7],[4,9,4,11],[3,9,3,11],[4,7,4,8],[3,7,3,8],[3,1,3,6],[4,1,4,6],[26,9,26,10],[9,5,9,8],[12,9,12,10],[20,9,20,10],[21,9,21,10],[0,1,0,9],[6,13,6,15],[7,5,7,8],[32,6,32,7],[30,6,30,7],[14,6,14,7],[16,6,16,7],[18,6,18,7],[28,6,28,7],[22,9,22,10],[26,6,26,7],[27,9,27,10],[24,9,24,10],[25,9,25,10],[1,1,1,11],[2,1,2,11]]}
[null,"CalOES - Law Enforcement Mutual Aid Assistance (LEMA) Program"]
[null," "]
[null,"APPLICANT'S BENEFITS CALCULATION WORKSHEET"]
[null,"APPLICANT",null,null,null,null,null,"CATEGORY",null,{"$f":"'FILL OUT FIRST - TOC'!E4","v":"Disaster Number (XXXX-DR-STATE):"}]
[null,{"$f":"'FILL OUT FIRST - TOC'!$F$5","v":0},null,null,null,null,null,{"$f":"'FILL OUT FIRST - TOC'!$F$6","v":"Law Enforcement Mutual Aid"},null,{"$f":"'FILL OUT FIRST - TOC'!$F$4","v":0}]
[]
[]
[null,null,null,null,null,"ENTER TOTAL ANNUAL PAYROLL"]
[]
[]
[]
[]
[null,null,null,null,null,null,"REGULAR TIME %",null,null,"OVERTIME %"]
[]
[null,"Holidays",null,null,null,null,{"$f":"E15*8/2080","v":0}]
[]
[null,"Vacation Leave",null,null,null,null,{"$f":"E17*8/2080","v":0}]
[]
[null,"Sick Leave",null,null,null,null,{"$f":"E19*8/2080","v":0}]
[]
[null,"* Social Security",null,null,null,null,null,null,true]
[]
[null,"* Medicare",null,null,null,null,null,null,true]
[]
[null,"* Unemployment",null,null,null,null,null,null,true]
[]
[null,"* Worker's Comp",null,null,null,null,{"$f":"IF(F$10=0,0,E27/F$10)","v":0},null,false,{"$f":"IF(I27=TRUE,G27,\"\")","v":""}]
[]
[null,"** Retirement",null,null,null,null,{"$f":"IF(F$10=0,0,E29/F$10)","v":0},null,false,{"$f":"IF(I29=TRUE,G29,\"\")","v":""}]
[]
[null,"Health Benefits",null,null,null,null,{"$f":"IF(F$10=0,0,E31/F$10)","v":0}]
[]
[null,"Life Insurance Benefits",null,null,null,null,{"$f":"IF(F$10=0,0,E33/F$10)","v":0}]
[]
[null,"Other (Describe here):","________________",null,null,null,{"$f":"IF(F$10=0,0,E35/F$10)","v":0},null,false,{"$f":"IF(I35=TRUE,G35,\"\")","v":""}]
[]
[]
[null,null,null,null,"Total (in % of annual salary)",null,{"$f":"SUM(G15:H35)","v":0},null,null,{"$f":"SUM(J21:K35)","v":0}]
[null,"(FIGURES IN BLUE AUTOMATICALLY \"GO\" TO THE FORCE ACCOUNT LABOR SHEETS)"]
[null,"COMMENTS:       "]
[]
[]
[]
[]
[]
[]
[null,"I CERTIFY THAT THE INFORMATION ABOVE WAS TRANSCRIBED FROM PAYROLL RECORDS OR OTHER DOCUMENTS  WHICH ARE AVAILABLE FOR AUDIT."]
[]
[]
[null,null,{"$f":"'FILL OUT FIRST - TOC'!F16","v":" "}]
[null,"CERTIFIED:"]
[]
[null,null," "]
[null,"DATE:"]
[]
[]
[]
[]
[]
[]
[]
[null,"* Only categories for overtime fringe benefits.",null,null,null,null,null,null,null," "]
[null,"** Only an overtime fringe benefit when supported by employee contract"]

{"sheet":"LABOR","index":3,"n_rows":41,"n_cols":54,"rows_kept":41,"cut":false,"hidden":false,"merged":[[2,1,2,30],[4,19,4,25],[3,19,3,25],[4,16,4,18],[3,16,3,18],[3,1,3,15],[4,1,4,15],[9,30,10,30],[4,26,4,29],[8,23,10,23],[8,24,10,24],[8,25,10,25],[8,26,8,30],[9,26,10,26],[1,1,1,30],[9,29,10,29],[8,21,10,21],[8,22,10,22],[9,27,10,27],[8,9,10,9],[8,7,10,7],[8,11,10,11],[5,1,10,2],[9,28,10,28],[8,17,10,17],[8,18,10,18],[3,26,3,29],[5,5,7,25],[5,4,10,4],[5,3,10,3],[8,10,10,10],[8,19,10,19],[8,20,10,20],[8,16,10,16],[8,5,10,5],[8,12,10,12],[8,13,10,13],[8,14,10,14],[8,15,10,15],[8,6,10,6],[8,8,10,8]]}
[]
[null,"CalOES - Law Enforcement Mutual Aid Assistance (LEMA) Program "]
[null,"FORCE ACCOUNT LABOR RECORD",null,null,null,null,null,null,null,null,null,null,null,null,null,null,null,null,null,null,null,null,null,null,null,null,null,null,null,null,null,null,null,"FT","Yes"]
[null,"APPLICANT",null,null,null,null,null,null,null,null,null,null,null,null,null,null,"CATEGORY",null,null,{"$f":"'FILL OUT FIRST - TOC'!E4","v":"Disaster Number (XXXX-DR-STATE):"},null,null,null,null,null,null,"After review of the pay policy, are EXEMPT employees eligible for OT?",null,null,null,"No",null,null,"PT","No"]
[null,{"$f":"'FILL OUT FIRST - TOC'!$F$5","v":0},null,null,null,null,null,null,null,null,null,null,null,null,null,null,{"$f":"'FILL OUT FIRST - TOC'!$F$6","v":"Law Enforcement Mutual Aid"},null,null,{"$f":"'FILL OUT FIRST - TOC'!$F$4","v":0},null,null,null,null,null,null,"Enter OT Rate",null,null,null,1.5,null,null,"T",null,null,null,null,null,null,null,null,null,null,null,null,null,null,null,null,null,null,null,{"$f":"IF(ISBLANK(BB4),\"\",VLOOKUP(BB4,#REF!,2,0))","v":""}]
[null,"EMPLOYEE NAME / TITLE",null,"STATUS","REG / OT","    DATES & HOURS WORKED EACH WEEK",null,null,null,null,null,null,null,null,null,null,null,null,null,null,null,null,null,null,null,null,{"$f":"SUM($AA$12,$AA$14,$AA$16,$AA$18,$AA$20,$AA$22,$AA$24,$AA$26,$AA$28,$AA$30,$AA$32,$AA$42,$AA$44,$AA$46,$AA$48,$AA$50,$AA$52,$AA$54,$AA$56,$AA$58,$AA$60,$AA$62,$AA$64,$AA$66,$AA$68,$AA$70,$AA$72,$AA$74,$AA$76,$AA$78,$AA$80,$AA$82,$AA$84,$AA$86,$AA$88,$AA$90,$AA$92,$AA$94,$AA$96,$AA$98,$AA$100,$AA$102,$AA$104,$AA$106,$AA$108,$AA$110,$AA$112,$AA$114,$AA$116,$AA$118,$AA$120,$AA$122,$AA$124,$AA$126,$AA$128,$AA$130,$AA$132,$AA$134,$AA$136,$AA$138,$AA$140,$AA$142,$AA$144,$AA$146,$AA$148,$AA$150,$AA$152,$AA$154,$AA$156,$AA$158,$AA$160,$AA$162,$AA$164,$AA$166,$AA$168,$AA$170,$AA$172,$AA$174,$AA$176,$AA$178,$AA$180,$AA$182,$AA$184,$AA$186,$AA$188,$AA$190,$AA$192,$AA$194,$AA$196,$AA$198,$AA$200,$AA$202,$AA$204,$AA$206,$AA$208,$AA$210,$AA$212,$AA$214,$AA$216,$AA$218,$AA$220,$AA$222,$AA$224,$AA$226,$AA$228,$AA$230,$AA$232,$AA$234,$AA$236,$AA$238,$AA$240,$AA$242,$AA$244,$AA$246,$AA$248,$AA$250,$AA$252,$AA$254,$AA$256,$AA$258,$AA$260,$AA$262,$AA$264,$AA$266,$AA$268,$AA$270,$AA$272,$AA$274,$AA$276,$AA$278,$AA$280,$AA$282,$AA$284,$AA$286,$AA$288,$AA$290,$AA$292,$AA$294,$AA$296,$AA$298,$AA$300,$AA$302,$AA$304,$AA$306,$AA$308,$AA$310,$AA$312,$AA$314,$AA$316,$AA$318,$AA$320,$AA$322,$AA$324,$AA$326,$AA$328,$AA$330,$AA$332,$AA$334,$AA$336,$AA$338,$AA$340,$AA$342,$AA$344,$AA$346,$AA$348,$AA$350,$AA$352,$AA$354,$AA$356,$AA$358,$AA$360,$AA$362,$AA$364,$AA$366,$AA$368,$AA$370,$AA$372,$AA$374,$AA$376,$AA$378,$AA$380,$AA$382,$AA$384,$AA$386,$AA$388,$AA$390,$AA$392,$AA$394,$AA$396,$AA$398,$AA$400,$AA$402,$AA$404,$AA$406,$AA$408,$AA$410,$AA$412,$AA$414,$AA$416,$AA$418,$AA$420,$AA$422,$AA$424,$AA$426,$AA$428,$AA$430,$AA$432,$AA$434,$AA$436,$AA$438,$AA$440,$AA$442,$AA$444,$AA$446,$AA$448,$AA$450,$AA$452,$AA$454,$AA$456,$AA$458,$AA$460,$AA$462,$AA$464,$AA$466,$AA$468,$AA$470,$AA$472,$AA$474,$AA$476,$AA$478,$AA$480,$AA$482,$AA$484,$AA$486,$AA$488,$AA$490,$AA$492,$AA$494,$AA$496,$AA$498,$AA$500,$AA$502,$AA$504,$AA$506,$AA$508,$AA$510,$AA$512,$AA$514,$AA$516,$AA$518,$AA$520)","v":0},"TOTAL HOURS",null,"\nTOTAL",{"$f":"SUM($AE$12,$AE$14,$AE$16,$AE$18,$AE$20,$AE$22,$AE$24,$AE$26,$AE$28,$AE$30,$AE$32,,$AE$42,$AE$44,$AE$46,$AE$48,$AE$50,$AE$52,$AE$54,$AE$56,$AE$58,$AE$60,$AE$62,$AE$64,$AE$66,$AE$68,$AE$70,$AE$72,$AE$74,$AE$76,$AE$78,$AE$80,$AE$82,$AE$84,$AE$86,$AE$88,$AE$90,$AE$92,$AE$94,$AE$96,$AE$98,$AE$100,$AE$102,$AE$104,$AE$106,$AE$108,$AE$110,$AE$112,$AE$114,$AE$116,$AE$118,$AE$120,$AE$122,$AE$124,$AE$126,$AE$128,$AE$130,$AE$132,$AE$134,$AE$136,$AE$138,$AE$140,$AE$142,$AE$144,$AE$146,$AE$148,$AE$150,$AE$152,$AE$154,$AE$156,$AE$158,$AE$160,$AE$162,$AE$164,$AE$166,$AE$168,$AE$170,$AE$172,$AE$174,$AE$176,$AE$178,$AE$180,$AE$182,$AE$184,$AE$186,$AE$188,$AE$190,$AE$192,$AE$194,$AE$196,$AE$198,$AE$200,$AE$202,$AE$204,$AE$206,$AE$208,$AE$210,$AE$212,$AE$214,$AE$216,$AE$218,$AE$220,$AE$222,$AE$224,$AE$226,$AE$228,$AE$230,$AE$232,$AE$234,$AE$236,$AE$238,$AE$240,$AE$242,$AE$244,$AE$246,$AE$248,$AE$250,$AE$252,$AE$254,$AE$256,$AE$258,$AE$260,$AE$262,$AE$264,$AE$266,$AE$268,$AE$270,$AE$272,$AE$274,$AE$276,$AE$278,$AE$280,$AE$282,$AE$284,$AE$286,$AE$288,$AE$290,$AE$292,$AE$294,$AE$296,$AE$298,$AE$300,$AE$302,$AE$304,$AE$306,$AE$308,$AE$310,$AE$312,$AE$314,$AE$316,$AE$318,$AE$320,$AE$322,$AE$324,$AE$326,$AE$328,$AE$330,$AE$332,$AE$334,$AE$336,$AE$338,$AE$340,$AE$342,$AE$344,$AE$346,$AE$348,$AE$350,$AE$352,$AE$354,$AE$356,$AE$358,$AE$360,$AE$362,$AE$364,$AE$366,$AE$368,$AE$370,$AE$372,$AE$374,$AE$376,$AE$378,$AE$380,$AE$382,$AE$384,$AE$386,$AE$388,$AE$390,$AE$392,$AE$394,$AE$396,$AE$398,$AE$400,$AE$402,$AE$404,$AE$406,$AE$408,$AE$410,$AE$412,$AE$414,$AE$416,$AE$418,$AE$420,$AE$422,$AE$424,$AE$426,$AE$428,$AE$430,$AE$432,$AE$434,$AE$436,$AE$438,$AE$440,$AE$442,$AE$444,$AE$446,$AE$448,$AE$450,$AE$452,$AE$454,$AE$456,$AE$458,$AE$460,$AE$462,$AE$464,$AE$466,$AE$468,$AE$470,$AE$472,$AE$474,$AE$476,$AE$478,$AE$480,$AE$482,$AE$484,$AE$486,$AE$488,$AE$490,$AE$492,$AE$494,$AE$496,$AE$498,$AE$500,$AE$502,$AE$504,$AE$506,$AE$508,$AE$510,$AE$512,$AE$514,$AE$516,$AE$518,$AE$520)","v":0}]
[null,null,null,null,null,null,null,null,null,null,null,null,null,null,null,null,null,null,null,null,null,null,null,null,null,null,{"$f":"SUM($AA$13,$AA$15,$AA$17,$AA$19,$AA$21,$AA$23,$AA$25,$AA$27,$AA$29,$AA$31,$AA$33,$AA$43,$AA$45,$AA$47,$AA$49,$AA$51,$AA$53,$AA$55,$AA$57,$AA$59,$AA$61,$AA$63,$AA$65,$AA$67,$AA$69,$AA$71,$AA$73,$AA$75,$AA$77,$AA$79,$AA$81,$AA$83,$AA$85,$AA$87,$AA$89,$AA$91,$AA$93,$AA$95,$AA$97,$AA$99,$AA$101,$AA$103,$AA$105,$AA$107,$AA$109,$AA$111,$AA$113,$AA$115,$AA$117,$AA$119,$AA$121,$AA$123,$AA$125,$AA$127,$AA$129,$AA$131,$AA$133,$AA$135,$AA$137,$AA$139,$AA$141,$AA$143,$AA$145,$AA$147,$AA$149,$AA$151,$AA$153,$AA$155,$AA$157,$AA$159,$AA$161,$AA$163,$AA$165,$AA$167,$AA$169,$AA$171,$AA$173,$AA$175,$AA$177,$AA$179,$AA$181,$AA$183,$AA$185,$AA$187,$AA$189,$AA$191,$AA$193,$AA$195,$AA$197,$AA$199,$AA$201,$AA$203,$AA$205,$AA$207,$AA$209,$AA$211,$AA$213,$AA$215,$AA$217,$AA$219,$AA$221,$AA$223,$AA$225,$AA$227,$AA$229,$AA$231,$AA$233,$AA$235,$AA$237,$AA$239,$AA$241,$AA$243,$AA$245,$AA$247,$AA$249,$AA$251,$AA$253,$AA$255,$AA$257,$AA$259,$AA$261,$AA$263,$AA$265,$AA$267,$AA$269,$AA$271,$AA$273,$AA$275,$AA$277,$AA$279,$AA$281,$AA$283,$AA$285,$AA$287,$AA$289,$AA$291,$AA$293,$AA$295,$AA$297,$AA$299,$AA$301,$AA$303,$AA$305,$AA$307,$AA$309,$AA$311,$AA$313,$AA$315,$AA$317,$AA$319,$AA$321,$AA$323,$AA$325,$AA$327,$AA$329,$AA$331,$AA$333,$AA$335,$AA$337,$AA$339,$AA$341,$AA$343,$AA$345,$AA$347,$AA$349,$AA$351,$AA$353,$AA$355,$AA$357,$AA$359,$AA$361,$AA$363,$AA$365,$AA$367,$AA$369,$AA$371,$AA$373,$AA$375,$AA$377,$AA$379,$AA$381,$AA$383,$AA$385,$AA$387,$AA$389,$AA$391,$AA$393,$AA$395,$AA$397,$AA$399,$AA$401,$AA$403,$AA$405,$AA$407,$AA$409,$AA$411,$AA$413,$AA$415,$AA$417,$AA$419,$AA$421,$AA$423,$AA$425,$AA$427,$AA$429,$AA$431,$AA$433,$AA$435,$AA$437,$AA$439,$AA$441,$AA$443,$AA$445,$AA$447,$AA$449,$AA$451,$AA$453,$AA$455,$AA$457,$AA$459,$AA$461,$AA$463,$AA$465,$AA$467,$AA$469,$AA$471,$AA$473,$AA$475,$AA$477,$AA$479,$AA$481,$AA$483,$AA$485,$AA$487,$AA$489,$AA$491,$AA$493,$AA$495,$AA$497,$AA$499,$AA$501,$AA$503,$AA$505,$AA$507,$AA$509,$AA$511,$AA$513,$AA$515,$AA$517,$AA$519,$AA$521,$AA$523,$AA$525)","v":0},"TOTAL OT HOURS",null,"OT TOTAL",{"$f":"SUM($AE$13,$AE$15,$AE$17,$AE$19,$AE$21,$AE$23,$AE$25,$AE$27,$AE$29,$AE$31,$AE$33,$AE$43,$AE$45,$AE$47,$AE$49,$AE$51,$AE$53,$AE$55,$AE$57,$AE$59,$AE$61,$AE$63,$AE$65,$AE$67,$AE$69,$AE$71,$AE$73,$AE$75,$AE$77,$AE$79,$AE$81,$AE$83,$AE$85,$AE$87,$AE$89,$AE$91,$AE$93,$AE$95,$AE$97,$AE$99,$AE$101,$AE$103,$AE$105,$AE$107,$AE$109,$AE$111,$AE$113,$AE$115,$AE$117,$AE$119,$AE$121,$AE$123,$AE$125,$AE$127,$AE$129,$AE$131,$AE$133,$AE$135,$AE$137,$AE$139,$AE$141,$AE$143,$AE$145,$AE$147,$AE$149,$AE$151,$AE$153,$AE$155,$AE$157,$AE$159,$AE$161,$AE$163,$AE$165,$AE$167,$AE$169,$AE$171,$AE$173,$AE$175,$AE$177,$AE$179,$AE$181,$AE$183,$AE$185,$AE$187,$AE$189,$AE$191,$AE$193,$AE$195,$AE$197,$AE$199,$AE$201,$AE$203,$AE$205,$AE$207,$AE$209,$AE$211,$AE$213,$AE$215,$AE$217,$AE$219,$AE$221,$AE$223,$AE$225,$AE$227,$AE$229,$AE$231,$AE$233,$AE$235,$AE$237,$AE$239,$AE$241,$AE$243,$AE$245,$AE$247,$AE$249,$AE$251,$AE$253,$AE$255,$AE$257,$AE$259,$AE$261,$AE$263,$AE$265,$AE$267,$AE$269,$AE$271,$AE$273,$AE$275,$AE$277,$AE$279,$AE$281,$AE$283,$AE$285,$AE$287,$AE$289,$AE$291,$AE$293,$AE$295,$AE$297,$AE$299,$AE$301,$AE$303,$AE$305,$AE$307,$AE$309,$AE$311,$AE$313,$AE$315,$AE$317,$AE$319,$AE$321,$AE$323,$AE$325,$AE$327,$AE$329,$AE$331,$AE$333,$AE$335,$AE$337,$AE$339,$AE$341,$AE$343,$AE$345,$AE$347,$AE$349,$AE$351,$AE$353,$AE$355,$AE$357,$AE$359,$AE$361,$AE$363,$AE$365,$AE$367,$AE$369,$AE$371,$AE$373,$AE$375,$AE$377,$AE$379,$AE$381,$AE$383,$AE$385,$AE$387,$AE$389,$AE$391,$AE$393,$AE$395,$AE$397,$AE$399,$AE$401,$AE$403,$AE$405,$AE$407,$AE$409,$AE$411,$AE$413,$AE$415,$AE$417,$AE$419,$AE$421,$AE$423,$AE$425,$AE$427,$AE$429,$AE$431,$AE$433,$AE$435,$AE$437,$AE$439,$AE$441,$AE$443,$AE$445,$AE$447,$AE$449,$AE$451,$AE$453,$AE$455,$AE$457,$AE$459,$AE$461,$AE$463,$AE$465,$AE$467,$AE$469,$AE$471,$AE$473,$AE$475,$AE$477,$AE$479,$AE$481,$AE$483,$AE$485,$AE$487,$AE$489,$AE$491,$AE$493,$AE$495,$AE$497,$AE$499,$AE$501,$AE$503,$AE$505,$AE$507,$AE$509,$AE$511,$AE$513,$AE$515,$AE$517,$AE$519,$AE$521,$AE$523,$AE$525)","v":0}]
[null,null,null,null,null,null,null,null,null,null,null,null,null,null,null,null,null,null,null,null,null,null,null,null,null,null,{"$f":"SUM(AA12:AA989)","v":0},"TOTAL HOURS",null,"TOTAL COST",{"$f":"SUM(AE12:AE41)","v":0}]
[null,null,null,null,null," "," "," "," "," "," "," "," "," "," "," "," "," "," "," "," "," "," "," "," "," ","RATES / COSTS",null,null,null,null,null,null,null,null,null,null,null,null,null,null,null,null,null,null,null,null,null,null,null,null,null,null,{"$f":"IF(ISBLANK(BB8),\"\",VLOOKUP(BB8,#REF!,2,0))","v":""}]
[null,null,null,null,null,null,null,null,null,null,null,null,null,null,null,null,null,null,null,null,null,null,null,null,null,null,"TOTAL HRS","HOURLY RATE","BENEFIT RATE","TOTAL HOURLY","TOTAL COST"]
[null,null,null,null,null,null,null,null,null,null,null,null,null,null,null,null,null,null,null,null,null,null,null,null,null,null,null,null,null,null,null,null,null,null,null,null,null,null,null,null,null,null,null,null,null,null,null,null,null,null,null,null,null,{"$f":"IF(ISBLANK(BB10),\"\",VLOOKUP(BB10,#REF!,2,0))","v":""}]
[null,"Name"," ","FT","REG",null,null,null,null,null,null,null,null,null,null,null,null,null,null,null,null,null,null,null,null,null,{"$f":"SUM(F12:Z12)","v":0},null,{"$f":"IF(ISBLANK(C12),0,'FRINGE BENEFITS'!$G$38)","v":0},{"$f":"(AB12+AC12*AB12)","v":0},{"$f":"PRODUCT(AA12*AD12)","v":0}]
[null,"Title"," ","FT","OT",null,null,null,null,null,null,null,null," "," ",null,null,null,null,null,null,null,null,null,null,null,{"$f":"SUM(F13:Z13)","v":0},{"$f":"IF(ISBLANK(C12),0,IF(OR(D12=\"FT\",D12=\"PT\",D12=\"T\"),LABOR!AB12*$AE$5,IF(AND(D12=\"E\",$AE$4=\"Yes\"),LABOR!AB12,0)))","v":0},{"$f":"IF(ISBLANK(C12),0,IF(OR(D12=\"FT\",D12=\"PT\",D12=\"T\"),'FRINGE BENEFITS'!$J$38,IF(AND(D12=\"E\",$AE$5=\"Yes\"),'FRINGE BENEFITS'!$J$38,0)))","v":0},0,{"$f":"PRODUCT(AA13*AD13)","v":0},null,null,null,null,null,null,null,null,null,null,null,null,null,null,null,null,null,null,null,null,null,null,{"$f":"IF(ISBLANK(BB10),\"\",VLOOKUP(BB10,#REF!,2,0))","v":""}]
[null,"Name"," ","FT","REG",null,null,null,null,null,null,null,null,null,null,null,null,null,null,null,null,null,null,null,null,null,{"$f":"SUM(F14:Z14)","v":0},null,{"$f":"IF(ISBLANK(C14),0,'FRINGE BENEFITS'!$G$38)","v":0},0,{"$f":"PRODUCT(AA14*AD14)","v":0},null,null,null,null,null,null,null,null,null,null,null,null,null,null,null,null,null,null,null,null,null,null,{"$f":"IF(ISBLANK(BB11),\"\",VLOOKUP(BB11,#REF!,2,0))","v":{"$error":"#REF!"}}]
[null,"Title"," ","FT","OT",null,null,null,null,null,null,null,null,null," ",null,null,null,null,null,null,null,null,null,null,null,0,{"$f":"IF(ISBLANK(C14),0,IF(OR(D14=\"FT\",D14=\"PT\",D14=\"T\"),LABOR!AB14*$AE$5,IF(AND(D14=\"E\",$AE$4=\"Yes\"),LABOR!AB14,0)))","v":0},{"$f":"IF(ISBLANK(C14),0,IF(OR(D14=\"FT\",D14=\"PT\",D14=\"T\"),'FRINGE BENEFITS'!$J$38,IF(AND(D14=\"E\",$AE$5=\"Yes\"),'FRINGE BENEFITS'!$J$38,0)))","v":0},0,{"$f":"PRODUCT(AA15*AD15)","v":0},null,null,null,null,null,null,null,null,null,null,null,null,null,null,null,null,null,null,null,null,null,null,{"$f":"IF(ISBLANK(BB12),\"\",VLOOKUP(BB12,#REF!,2,0))","v":""}]
[null,"Name"," ","FT","REG",null,null,null,null,null,null,null,null,null,null,null,null,null,null,null,null,null,null,null,null,null,{"$f":"SUM(F16:Z16)","v":0},null,{"$f":"IF(ISBLANK(C16),0,'FRINGE BENEFITS'!$G$38)","v":0},{"$f":"(AB16+AC16*AB16)","v":0},{"$f":"PRODUCT(AA16*AD16)","v":0},null,null,null,"    "]
[null,"Title",null,"FT","OT",null,null,null,null,null,null,null,null," "," "," ",null,null,null,null,null,null,null,null,null,null,{"$f":"SUM(F17:Z17)","v":0},{"$f":"IF(ISBLANK(C16),0,IF(OR(D16=\"FT\",D16=\"PT\",D16=\"T\"),LABOR!AB16*$AE$5,IF(AND(D16=\"E\",$AE$4=\"Yes\"),LABOR!AB16,0)))","v":0},{"$f":"IF(ISBLANK(C16),0,IF(OR(D16=\"FT\",D16=\"PT\",D16=\"T\"),'FRINGE BENEFITS'!$J$38,IF(AND(D16=\"E\",$AE$5=\"Yes\"),'FRINGE BENEFITS'!$J$38,0)))","v":0},0,{"$f":"PRODUCT(AA17*AD17)","v":0},null,null,null,null,null,null,null,null,null,null,null,null,null,null,null,null,null,null,null,null,null,null,{"$f":"IF(ISBLANK(BB14),\"\",VLOOKUP(BB14,#REF!,2,0))","v":{"$error":"#REF!"}}]
[null,"Name"," ","FT","REG",null,null,null,null,null,null,null,null,null,null,null,null,null,null,null,null,null,null,null,null,null,0,null,{"$f":"IF(ISBLANK(C18),0,'FRINGE BENEFITS'!$G$38)","v":0},0,0,null,null,null,null,null,null,null,null,null,null,null,null,null,null,null,null,null,null,null,null,null,null,{"$f":"IF(ISBLANK(BB15),\"\",VLOOKUP(BB15,#REF!,2,0))","v":{"$error":"#REF!"}}]
[null,"Title",null,"FT","OT",null,null,null,null,null,null,null,null," "," "," ",null,null,null,null,null,null,null,null,null,null,0,{"$f":"IF(ISBLANK(C18),0,IF(OR(D18=\"FT\",D18=\"PT\",D18=\"T\"),LABOR!AB18*$AE$5,IF(AND(D18=\"E\",$AE$4=\"Yes\"),LABOR!AB18,0)))","v":0},{"$f":"IF(ISBLANK(C18),0,IF(OR(D18=\"FT\",D18=\"PT\",D18=\"T\"),'FRINGE BENEFITS'!$J$38,IF(AND(D18=\"E\",$AE$5=\"Yes\"),'FRINGE BENEFITS'!$J$38,0)))","v":0},0,0,null,null,null,null,null,null,null,null,null,null,null,null,null,null,null,null,null,null,null,null,null,null,{"$f":"IF(ISBLANK(BB16),\"\",VLOOKUP(BB16,#REF!,2,0))","v":""}]
[null,"Name",null,"FT","REG",null,null,null,null,null,null,null,null,null,null,null,null,null,null,null,null,null,null,null,null,null,0,null,{"$f":"IF(ISBLANK(C20),0,'FRINGE BENEFITS'!$G$38)","v":0},0,0]
[null,"Title",null,"FT","OT",null,null,null,null,null,null,null,null,null,null,null,null,null,null,null,null,null,null,null,null,null,0,{"$f":"IF(ISBLANK(C20),0,IF(OR(D20=\"FT\",D20=\"PT\",D20=\"T\"),LABOR!AB20*$AE$5,IF(AND(D20=\"E\",$AE$4=\"Yes\"),LABOR!AB20,0)))","v":0},{"$f":"IF(ISBLANK(C20),0,IF(OR(D20=\"FT\",D20=\"PT\",D20=\"T\"),'FRINGE BENEFITS'!$J$38,IF(AND(D20=\"E\",$AE$5=\"Yes\"),'FRINGE BENEFITS'!$J$38,0)))","v":0},0,0,null,null,null,null,null,null,null,null,null,null,null,null,null,null,null,null,null,null,null,null,null,null,{"$f":"IF(ISBLANK(BB18),\"\",VLOOKUP(BB18,#REF!,2,0))","v":{"$error":"#REF!"}}]
[null,"Name",null,"FT","REG",null,null,null,null,null,null,null,null,null,null,null,null,null,null,null,null,null,null,null,null,null,0,null,{"$f":"IF(ISBLANK(C22),0,'FRINGE BENEFITS'!$G$38)","v":0},0,0,null,null,null,null,null,null,null,null,null,null,null,null,null,null,null,null,null,null,null,null,null,null,{"$f":"IF(ISBLANK(BB19),\"\",VLOOKUP(BB19,#REF!,2,0))","v":{"$error":"#REF!"}}]
[null,"Title",null,"FT","OT",null,null,null,null,null,null,null,null,null,null,null,null,null,null,null,null,null,null,null,null,null,0,{"$f":"IF(ISBLANK(C22),0,IF(OR(D22=\"FT\",D22=\"PT\",D22=\"T\"),LABOR!AB22*$AE$5,IF(AND(D22=\"E\",$AE$4=\"Yes\"),LABOR!AB22,0)))","v":0},{"$f":"IF(ISBLANK(C22),0,IF(OR(D22=\"FT\",D22=\"PT\",D22=\"T\"),'FRINGE BENEFITS'!$J$38,IF(AND(D22=\"E\",$AE$5=\"Yes\"),'FRINGE BENEFITS'!$J$38,0)))","v":0},0,0,null,null,null,null,null,null,null,null,null,null,null,null,null,null,null,null,null,null,null,null,null,null,{"$f":"IF(ISBLANK(BB20),\"\",VLOOKUP(BB20,#REF!,2,0))","v":""}]
[null,"Name",null,"FT","REG",null,null,null,null,null,null,null,null,null,null,null,null,null,null,null,null,null,null,null,null,null,0,null,{"$f":"IF(ISBLANK(C24),0,'FRINGE BENEFITS'!$G$38)","v":0},0,0]
[null,"Title",null,"FT","OT",null,null,null,null,null,null,null,null,null,null,null,null,null,null,null,null,null,null,null,null,null,0,{"$f":"IF(ISBLANK(C24),0,IF(OR(D24=\"FT\",D24=\"PT\",D24=\"T\"),LABOR!AB24*$AE$5,IF(AND(D24=\"E\",$AE$4=\"Yes\"),LABOR!AB24,0)))","v":0},{"$f":"IF(ISBLANK(C24),0,IF(OR(D24=\"FT\",D24=\"PT\",D24=\"T\"),'FRINGE BENEFITS'!$J$38,IF(AND(D24=\"E\",$AE$5=\"Yes\"),'FRINGE BENEFITS'!$J$38,0)))","v":0},0,0,null,null,null,null,null,null,null,null,null,null,null,null,null,null,null,null,null,null,null,null,null,null,{"$f":"IF(ISBLANK(BB22),\"\",VLOOKUP(BB22,#REF!,2,0))","v":{"$error":"#REF!"}}]
[null,"Name",null,"FT","REG",null,null,null,null,null,null,null,null,null,null,null,null,null,null,null,null,null,null,null,null,null,0,null,{"$f":"IF(ISBLANK(C26),0,'FRINGE BENEFITS'!$G$38)","v":0},0,0,null,null,null,null,null,null,null,null,null,null,null,null,null,null,null,null,null,null,null,null,null,null,{"$f":"IF(ISBLANK(BB23),\"\",VLOOKUP(BB23,#REF!,2,0))","v":{"$error":"#REF!"}}]
[null,"Title",null,"FT","OT",null,null,null,null,null,null,null,null,null,null,null,null,null,null,null,null,null,null,null,null,null,0,{"$f":"IF(ISBLANK(C26),0,IF(OR(D26=\"FT\",D26=\"PT\",D26=\"T\"),LABOR!AB26*$AE$5,IF(AND(D26=\"E\",$AE$4=\"Yes\"),LABOR!AB26,0)))","v":0},{"$f":"IF(ISBLANK(C26),0,IF(OR(D26=\"FT\",D26=\"PT\",D26=\"T\"),'FRINGE BENEFITS'!$J$38,IF(AND(D26=\"E\",$AE$5=\"Yes\"),'FRINGE BENEFITS'!$J$38,0)))","v":0},0,0,null,null,null,null,null,null,null,null,null,null,null,null,null,null,null,null,null,null,null,null,null,null,{"$f":"IF(ISBLANK(BB24),\"\",VLOOKUP(BB24,#REF!,2,0))","v":""}]
[null,"Name",null,"FT","REG",null,null,null,null,null,null,null,null,null,null,null,null,null,null,null,null,null,null,null,null,null,0,null,{"$f":"IF(ISBLANK(C28),0,'FRINGE BENEFITS'!$G$38)","v":0},0,0]
[null,"Title",null,"FT","OT",null,null,null,null,null,null,null,null,null,null,null,null,null,null,null,null,null,null,null,null,null,0,{"$f":"IF(ISBLANK(C28),0,IF(OR(D28=\"FT\",D28=\"PT\",D28=\"T\"),LABOR!AB28*$AE$5,IF(AND(D28=\"E\",$AE$4=\"Yes\"),LABOR!AB28,0)))","v":0},{"$f":"IF(ISBLANK(C28),0,IF(OR(D28=\"FT\",D28=\"PT\",D28=\"T\"),'FRINGE BENEFITS'!$J$38,IF(AND(D28=\"E\",$AE$5=\"Yes\"),'FRINGE BENEFITS'!$J$38,0)))","v":0},0,0,null,null,null,null,null,null,null,null,null,null,null,null,null,null,null,null,null,null,null,null,null,null,{"$f":"IF(ISBLANK(BB26),\"\",VLOOKUP(BB26,#REF!,2,0))","v":{"$error":"#REF!"}}]
[null,"Name",null,"FT","REG",null,null,null,null,null,null,null,null,null,null,null,null,null,null,null,null,null,null,null,null,null,{"$f":"SUM(F30:Z30)","v":0},null,{"$f":"IF(ISBLANK(C30),0,'FRINGE BENEFITS'!$G$38)","v":0},0,0,null,null,null,null,null,null,null,null,null,null,null,null,null,null,null,null,null,null,null,null,null,null,{"$f":"IF(ISBLANK(BB25),\"\",VLOOKUP(BB25,#REF!,2,0))","v":{"$error":"#REF!"}}]
[null,"Title",null,"FT","OT",null,null,null,null,null,null,null,null,null,null,null,null,null,null,null,null,null,null,null,null,null,0,{"$f":"IF(ISBLANK(C30),0,IF(OR(D30=\"FT\",D30=\"PT\",D30=\"T\"),LABOR!AB30*$AE$5,IF(AND(D30=\"E\",$AE$4=\"Yes\"),LABOR!AB30,0)))","v":0},{"$f":"IF(ISBLANK(C30),0,IF(OR(D30=\"FT\",D30=\"PT\",D30=\"T\"),'FRINGE BENEFITS'!$J$38,IF(AND(D30=\"E\",$AE$5=\"Yes\"),'FRINGE BENEFITS'!$J$38,0)))","v":0},0,0,null,null,null,null,null,null,null,null,null,null,null,null,null,null,null,null,null,null,null,null,null,null,{"$f":"IF(ISBLANK(BB26),\"\",VLOOKUP(BB26,#REF!,2,0))","v":{"$error":"#REF!"}}]
[null,"Name",null,"FT","REG",null,null,null,null,null,null,null,null,null,null,null,null,null,null,null,null,null,null,null,null,null,0,null,{"$f":"IF(ISBLANK(C32),0,'FRINGE BENEFITS'!$G$38)","v":0},0,0,null,null,null,null,null,null,null,null,null,null,null,null,null,null,null,null,null,null,null,null,null,null,{"$f":"IF(ISBLANK(BB27),\"\",VLOOKUP(BB27,#REF!,2,0))","v":{"$error":"#REF!"}}]
[null,"Title",null,"FT","OT",null,null,null,null,null,null,null,null,null,null,null,null,null,null,null,null,null,null,null,null,null,0,{"$f":"IF(ISBLANK(C32),0,IF(OR(D32=\"FT\",D32=\"PT\",D32=\"T\"),LABOR!AB32*$AE$5,IF(AND(D32=\"E\",$AE$4=\"Yes\"),LABOR!AB32,0)))","v":0},{"$f":"IF(ISBLANK(C32),0,IF(OR(D32=\"FT\",D32=\"PT\",D32=\"T\"),'FRINGE BENEFITS'!$J$38,IF(AND(D32=\"E\",$AE$5=\"Yes\"),'FRINGE BENEFITS'!$J$38,0)))","v":0},0,0,null,null,null,null,null,null,null,null,null,null,null,null,null,null,null,null,null,null,null,null,null,null,{"$f":"IF(ISBLANK(BB28),\"\",VLOOKUP(BB28,#REF!,2,0))","v":""}]
[null,"Name",null,"FT","REG",null,null,null,null,null,null,null,null,null,null,null,null,null,null,null,null,null,null,null,null,null,{"$f":"SUM(F34:Z34)","v":0},null,{"$f":"IF(ISBLANK(C34),0,'FRINGE BENEFITS'!$G$38)","v":0},{"$f":"(AB34+AC34*AB34)","v":0},{"$f":"PRODUCT(AA34*AD34)","v":0},null,null,null,null,null,null,null,null,null,null,null,null,null,null,null,null,null,null,null,null,null,null,{"$f":"IF(ISBLANK(BB29),\"\",VLOOKUP(BB29,#REF!,2,0))","v":{"$error":"#REF!"}}]
[null,"Title",null,"FT","OT",null,null,null,null,null,null,null,null,null,null,null,null,null,null,null,null,null,null,null,null,null,0,{"$f":"IF(ISBLANK(C34),0,IF(OR(D34=\"FT\",D34=\"PT\",D34=\"T\"),LABOR!AB34*$AE$5,IF(AND(D34=\"E\",$AE$4=\"Yes\"),LABOR!AB34,0)))","v":0},{"$f":"IF(ISBLANK(C34),0,IF(OR(D34=\"FT\",D34=\"PT\",D34=\"T\"),'FRINGE BENEFITS'!$J$38,IF(AND(D34=\"E\",$AE$5=\"Yes\"),'FRINGE BENEFITS'!$J$38,0)))","v":0},0,0,null,null,null,null,null,null,null,null,null,null,null,null,null,null,null,null,null,null,null,null,null,null,{"$f":"IF(ISBLANK(BB30),\"\",VLOOKUP(BB30,#REF!,2,0))","v":{"$error":"#REF!"}}]
[null,"Name",null,"FT","REG",null,null,null,null,null,null,null,null,null,null,null,null,null,null,null,null,null,null,null,null,null,{"$f":"SUM(F36:Z36)","v":0},null,{"$f":"IF(ISBLANK(C36),0,'FRINGE BENEFITS'!$G$38)","v":0},{"$f":"(AB36+AC36*AB36)","v":0},{"$f":"PRODUCT(AA36*AD36)","v":0},null,null,null,null,null,null,null,null,null,null,null,null,null,null,null,null,null,null,null,null,null,null,{"$f":"IF(ISBLANK(BB31),\"\",VLOOKUP(BB31,#REF!,2,0))","v":{"$error":"#REF!"}}]
[null,"Title",null,"FT","OT",null,null,null,null,null,null,null,null,null,null,null,null,null,null,null,null,null,null,null,null,null,0,{"$f":"IF(ISBLANK(C36),0,IF(OR(D36=\"FT\",D36=\"PT\",D36=\"T\"),LABOR!AB36*$AE$5,IF(AND(D36=\"E\",$AE$4=\"Yes\"),LABOR!AB36,0)))","v":0},{"$f":"IF(ISBLANK(C36),0,IF(OR(D36=\"FT\",D36=\"PT\",D36=\"T\"),'FRINGE BENEFITS'!$J$38,IF(AND(D36=\"E\",$AE$5=\"Yes\"),'FRINGE BENEFITS'!$J$38,0)))","v":0},0,0,null,null,null,null,null,null,null,null,null,null,null,null,null,null,null,null,null,null,null,null,null,null,{"$f":"IF(ISBLANK(BB32),\"\",VLOOKUP(BB32,#REF!,2,0))","v":{"$error":"#REF!"}}]
[null,"Name",null,"FT","REG",null,null,null,null,null,null,null,null,null,null,null,null,null,null,null,null,null,null,null,null,null,{"$f":"SUM(F38:Z38)","v":0},null,{"$f":"IF(ISBLANK(C38),0,'FRINGE BENEFITS'!$G$38)","v":0},{"$f":"(AB38+AC38*AB38)","v":0},{"$f":"PRODUCT(AA38*AD38)","v":0},null,null,null,null,null,null,null,null,null,null,null,null,null,null,null,null,null,null,null,null,null,null,{"$f":"IF(ISBLANK(BB33),\"\",VLOOKUP(BB33,#REF!,2,0))","v":{"$error":"#REF!"}}]
[null,"Title",null,"FT","OT",null,null,null,null,null,null,null,null,null,null,null,null,null,null,null,null,null,null,null,null,null,0,{"$f":"IF(ISBLANK(C38),0,IF(OR(D38=\"FT\",D38=\"PT\",D38=\"T\"),LABOR!AB38*$AE$5,IF(AND(D38=\"E\",$AE$4=\"Yes\"),LABOR!AB38,0)))","v":0},{"$f":"IF(ISBLANK(C38),0,IF(OR(D38=\"FT\",D38=\"PT\",D38=\"T\"),'FRINGE BENEFITS'!$J$38,IF(AND(D38=\"E\",$AE$5=\"Yes\"),'FRINGE BENEFITS'!$J$38,0)))","v":0},0,0,null,null,null,null,null,null,null,null,null,null,null,null,null,null,null,null,null,null,null,null,null,null,{"$f":"IF(ISBLANK(BB34),\"\",VLOOKUP(BB34,#REF!,2,0))","v":{"$error":"#REF!"}}]
[null,"Name",null,"FT","REG",null,null,null,null,null,null,null,null,null,null,null,null,null,null,null,null,null,null,null,null,null,{"$f":"SUM(F40:Z40)","v":0},null,{"$f":"IF(ISBLANK(C40),0,'FRINGE BENEFITS'!$G$38)","v":0},{"$f":"(AB40+AC40*AB40)","v":0},{"$f":"PRODUCT(AA40*AD40)","v":0},null,null,null,null,null,null,null,null,null,null,null,null,null,null,null,null,null,null,null,null,null,null,{"$f":"IF(ISBLANK(BB35),\"\",VLOOKUP(BB35,#REF!,2,0))","v":{"$error":"#REF!"}}]
[null,"Title",null,"FT","OT",null,null,null,null,null,null,null,null,null,null,null,null,null,null,null,null,null,null,null,null,null,0,{"$f":"IF(ISBLANK(C40),0,IF(OR(D40=\"FT\",D40=\"PT\",D40=\"T\"),LABOR!AB40*$AE$5,IF(AND(D40=\"E\",$AE$4=\"Yes\"),LABOR!AB40,0)))","v":0},{"$f":"IF(ISBLANK(C40),0,IF(OR(D40=\"FT\",D40=\"PT\",D40=\"T\"),'FRINGE BENEFITS'!$J$38,IF(AND(D40=\"E\",$AE$5=\"Yes\"),'FRINGE BENEFITS'!$J$38,0)))","v":0},0,0,null,null,null,null,null,null,null,null,null,null,null,null,null,null,null,null,null,null,null,null,null,null,{"$f":"IF(ISBLANK(BB36),\"\",VLOOKUP(BB36,#REF!,2,0))","v":{"$error":"#REF!"}}]

{"sheet":"LEMA EQUIPMENT","index":4,"n_rows":30,"n_cols":34,"rows_kept":30,"cut":false,"hidden":false,"merged":[[6,8,7,28],[6,1,7,7],[5,26,5,30],[2,1,2,30],[3,1,3,30],[4,23,4,25],[5,23,5,25],[4,26,4,30],[4,1,4,22],[5,1,5,22]]}
[null,null,null,null,null,null,null,"CalOES - Law Enforcement Mutual Aid Assistance (LEMA) Program "]
[]
[null,"  "]
[null,"FORCE ACCOUNT EQUIPMENT RECORD",null,null,null,null,null,null,null,null,null,null,null,null,null,null,null,null,null,null,null,null,null,null,null,null,null,null,null,null,null,null,null,"HR"]
[null,"APPLICANT",null,null,null,null,null,null,null,null,null,null,null,null,null,null,null,null,null,null,null,null,null,"CATEGORY",null,null,{"$f":"'FILL OUT FIRST - TOC'!E4","v":"Disaster Number (XXXX-DR-STATE):"},null,null,null,null,null,null,"MI"]
[null,{"$f":"'FILL OUT FIRST - TOC'!$F$5","v":0},null,null,null,null,null,null,null,null,null,null,null,null,null,null,null,null,null,null,null,null,null,{"$f":"'FILL OUT FIRST - TOC'!$F$6","v":"Law Enforcement Mutual Aid"},null,null,{"$f":"'FILL OUT FIRST - TOC'!$F$4","v":0}]
[null,"EQUIPMENT / OPERATOR INFORMATION",null,null,null,null,null,null,"DATES / HOURS/MILEAGE USED EACH DAY",null,null,null,null,null,null,null,null,null,null,null,null,null,null,null,null,null,null,null,null,"TOTAL","TOTAL"]
[null,null,null,null,null,null,null,null,null,null,null,null,null,null,null,null,null,null,null,null,null,null,null,null,null,null,null,null,null,"HOURS","COST"]
[null,"Equipment Name \n(Unit Number, Make, Model)","Operator's Name","HP","Capacity","Unit","Equip. Code #","Equip. Rate"," "," "," "," "," "," "," "," "," "," "," "," "," "," "," "," "," "," "," "," "," ",{"$f":"SUM(AD10:AD989)","v":0},{"$f":"SUM(AE10:AE989)","v":0}]
[null," "," "," "," ","MI",null,0.7,null,null,null,null,null,null,null,null,null," ",null,null,null,null,null,null,null,null,null,null,null,{"$f":"SUM(I10:AC10)","v":0},{"$f":"H10*AD10","v":0}]
[null," "," "," "," ","MI",null,0.7,null,null,null,null,null,null,null,null,null,null," ",null,null,null,null,null,null,null,null,null,null,{"$f":"SUM(I11:AC11)","v":0},0]
[null,null,null,null,null,null,null,null,null,null,null,null,null,null,null,null,null,null,null,null,null,null,null,null,null,null,null,null,null,{"$f":"SUM(I12:AC12)","v":0},0]
[null,null,null,null,null,null,null,null,null,null,null,null,null,null,null,null,null,null,null,null,null,null,null,null,null,null,null,null,null,{"$f":"SUM(I13:AC13)","v":0},0]
[null,null,null,null,null,null,null,null,null,null,null,null,null,null,null,null,null,null,null,null,null,null,null,null,null,null,null,null,null,0,0]
[null,null,null,null,null,null,null,null,null,null,null,null,null,null,null,null,null,null,null,null,null,null,null,null,null,null,null,null,null,0,0]
[null,null,null,null,null,null,null,null,null,null,null,null,null,null,null,null,null,null,null,null,null,null,null,null,null,null,null,null,null,0,0]
[null,null,null,null,null,null,null,null,null,null,null,null,null,null,null,null,null,null,null,null,null,null,null,null,null,null,null,null,null,0,0]
[null,null,null,null,null,null,null,null,null,null,null,null,null,null,null," ",null,null,null,null,null,null,null,null,null,null,null,null,null,0,0]
[null,null,null,null,null,null,null,null,null,null,null,null,null,null,null,null,null,null,null,null,null,null,null,null,null,null,null,null,null,0,0]
[null,null,null,null,null,null,null,null,null,null,null,null,null,null,null,null,null,null,null,null,null,null,null,null,null,null,null,null,null,0,0]
[null,null,null,null,null,null,null,null,null,null,null,null,null,null,null,null,null,null,null,null,null,null,null,null,null,null,null,null,null,0,0]
[null,null,null,null,null,null,null,null,null,null,null,null,null,null,null,null,null,null,null,null,null,null,null,null,null,null,null,null,null,0,0]
[null,null,null,null,null,null,null,null,null,null,null,null,null,null,null,null,null,null,null,null,null,null,null,null,null,null,null,null,null,0,0]
[null,null,null,null,null,null,null,null,null,null,null,null,null,null,null,null,null,null,null,null,null,null,null,null,null,null,null,null,null,0,0]
[null,null,null,null,null,null,null,null,null,null,null,null,null,null,null,null,null,null,null,null,null,null,null,null,null,null,null,null,null,0,0]
[null,null,null,null,null,null,null,null,null,null,null,null,null,null,null,null,null,null,null,null,null,null,null,null,null,null,null,null,null,0,0]
[null,null,null,null,null,null,null,null,null,null,null,null,null,null,null,null,null,null,null,null,null,null,null,null,null,null,null,null,null,{"$f":"SUM(I27:AC27)","v":0},0]
[null,null,null,null,null,null,null,null,null,null,null,null,null,null,null,null,null,null,null,null,null,null,null,null,null,null,null,null,null,{"$f":"SUM(I28:AC28)","v":0},0]
[null,null,null,null,null,null,null,null,null,null,null,null,null,null,null,null,null,null,null,null,null,null,null,null,null,null,null,null,null,0,0]
[null,null,null,null,null,null,null,null,null,null,null,null,null,null,null,null,null,null,null,null,null,null,null,null,null,null,null,null,null,0,0]

{"sheet":"RA EQUIPMENT","index":5,"n_rows":29,"n_cols":34,"rows_kept":29,"cut":false,"hidden":false,"merged":[[5,1,6,7],[5,8,6,28],[1,1,1,30],[2,1,2,30],[3,1,3,22],[3,23,3,25],[3,26,3,30],[4,1,4,22],[4,23,4,25],[4,26,4,30]]}
[]
[null,"  "]
[null,"FORCE ACCOUNT EQUIPMENT RECORD",null,null,null,null,null,null,null,null,null,null,null,null,null,null,null,null,null,null,null,null,null,null,null,null,null,null,null,null,null,null,null,"HR"]
[null,"APPLICANT",null,null,null,null,null,null,null,null,null,null,null,null,null,null,null,null,null,null,null,null,null,"CATEGORY",null,null,{"$f":"'FILL OUT FIRST - TOC'!E4","v":"Disaster Number (XXXX-DR-STATE):"},null,null,null,null,null,null,"MI"]
[null,{"$f":"'FILL OUT FIRST - TOC'!$F$5","v":0},null,null,null,null,null,null,null,null,null,null,null,null,null,null,null,null,null,null,null,null,null,{"$f":"'FILL OUT FIRST - TOC'!$F$6","v":"Law Enforcement Mutual Aid"},null,null,{"$f":"'FILL OUT FIRST - TOC'!$F$4","v":0}]
[null,"EQUIPMENT / OPERATOR INFORMATION",null,null,null,null,null,null,"DATES / HOURS/MILEAGE USED EACH DAY",null,null,null,null,null,null,null,null,null,null,null,null,null,null,null,null,null,null,null,null,"TOTAL","TOTAL"]
[null,null,null,null,null,null,null,null,null,null,null,null,null,null,null,null,null,null,null,null,null,null,null,null,null,null,null,null,null,"HOURS","COST"]
[null,"Equipment Name \n(Unit Number, Make, Model)","Operator's Name","HP","Capacity","Unit","Equip. Code #","Equip. Rate"," "," "," "," "," "," "," "," "," "," "," "," "," "," "," "," "," "," "," "," "," ",{"$f":"SUM(AD9:AD988)","v":0},{"$f":"SUM(AE9:AE988)","v":0}]
[null," "," "," "," ","MI",null,0.68,null,null,null,null,null,null,null,null,null," ",null,null,null,null,null,null,null,null,null,null,null,{"$f":"SUM(I9:AC9)","v":0},{"$f":"H9*AD9","v":0}]
[null," "," "," "," ","MI",null,null,null,null,null,null,null,null,null,null,null,null," ",null,null,null,null,null,null,null,null,null,null,{"$f":"SUM(I10:AC10)","v":0},0]
[null,null,null,null,null,null,null,null,null,null,null,null,null,null,null,null,null,null,null,null,null,null,null,null,null,null,null,null,null,{"$f":"SUM(I11:AC11)","v":0},0]
[null,null,null,null,null,null,null,null,null,null,null,null,null,null,null,null,null,null,null,null,null,null,null,null,null,null,null,null,null,{"$f":"SUM(I12:AC12)","v":0},0]
[null,null,null,null,null,null,null,null,null,null,null,null,null,null,null,null,null,null,null,null,null,null,null,null,null,null,null,null,null,0,0]
[null,null,null,null,null,null,null,null,null,null,null,null,null,null,null,null,null,null,null,null,null,null,null,null,null,null,null,null,null,0,0]
[null,null,null,null,null,null,null,null,null,null,null,null,null,null,null,null,null,null,null,null,null,null,null,null,null,null,null,null,null,0,0]
[null,null,null,null,null,null,null,null,null,null,null,null,null,null,null,null,null,null,null,null,null,null,null,null,null,null,null,null,null,0,0]
[null,null,null,null,null,null,null,null,null,null,null,null,null,null,null," ",null,null,null,null,null,null,null,null,null,null,null,null,null,0,0]
[null,null,null,null,null,null,null,null,null,null,null,null,null,null,null,null,null,null,null,null,null,null,null,null,null,null,null,null,null,0,0]
[null,null,null,null,null,null,null,null,null,null,null,null,null,null,null,null,null,null,null,null,null,null,null,null,null,null,null,null,null,0,0]
[null,null,null,null,null,null,null,null,null,null,null,null,null,null,null,null,null,null,null,null,null,null,null,null,null,null,null,null,null,0,0]
[null,null,null,null,null,null,null,null,null,null,null,null,null,null,null,null,null,null,null,null,null,null,null,null,null,null,null,null,null,0,0]
[null,null,null,null,null,null,null,null,null,null,null,null,null,null,null,null,null,null,null,null,null,null,null,null,null,null,null,null,null,0,0]
[null,null,null,null,null,null,null,null,null,null,null,null,null,null,null,null,null,null,null,null,null,null,null,null,null,null,null,null,null,0,0]
[null,null,null,null,null,null,null,null,null,null,null,null,null,null,null,null,null,null,null,null,null,null,null,null,null,null,null,null,null,0,0]
[null,null,null,null,null,null,null,null,null,null,null,null,null,null,null,null,null,null,null,null,null,null,null,null,null,null,null,null,null,0,0]
[null,null,null,null,null,null,null,null,null,null,null,null,null,null,null,null,null,null,null,null,null,null,null,null,null,null,null,null,null,0,0]
[null,null,null,null,null,null,null,null,null,null,null,null,null,null,null,null,null,null,null,null,null,null,null,null,null,null,null,null,null,0,0]
[null,null,null,null,null,null,null,null,null,null,null,null,null,null,null,null,null,null,null,null,null,null,null,null,null,null,null,null,null,0,0]
[null,null,null,null,null,null,null,null,null,null,null,null,null,null,null,null,null,null,null,null,null,null,null,null,null,null,null,null,null,0,0]

{"sheet":"FEMA EQUIP.RATES","index":6,"n_rows":555,"n_cols":9,"rows_kept":555,"cut":false,"hidden":false,"merged":[[438,7,439,7],[438,8,439,8],[441,0,442,0],[441,1,442,1],[441,3,442,3],[441,4,442,4],[441,5,442,5],[441,6,442,6],[441,7,442,7],[441,8,442,8],[438,0,439,0],[438,1,439,1],[438,2,439,2],[438,4,439,4],[438,5,439,5],[438,6,439,6],[238,7,239,7],[238,8,239,8],[434,0,435,0],[434,1,435,1],[434,2,435,2],[434,4,435,4],[434,5,435,5],[434,6,435,6],[434,7,435,7],[434,8,435,8],[238,0,239,0],[238,1,239,1],[238,2,239,2],[238,4,239,4],[238,5,239,5],[238,6,239,6],[0,0,0,8],[153,0,154,0],[153,1,154,1],[153,2,154,2],[153,3,154,3],[153,4,154,4],[153,5,154,5],[153,7,154,7],[153,8,154,8]]}
["FEMA EQUIPMENT RATES 2023-2025"]
[null,"A","B","C","D","E","F","G","H"]
[null,"Cost Code","Equipment","Specifications/Manufacturer","Capacity or Size","HP","Notes","Unit","2023 Rates"]
[1,8010,"Air Compressor","Miscellaneous Tank Mounted Air Compressors\n80/25","41 CFM","to 10","Hoses included","hour",1.28]
[2,8011,"Air Compressor","Multiquip DIS100SSK4F","103 CFM","to 30","Hoses included","hour",20.32]
[3,8012,"Air Compressor","Sullivan-Palatek D130Q6IZ","130 CFM","to 50","Hoses included","hour",28.56]
[4,8013,"Air Compressor","Grimmer-Schmidt 175","175 CFM","to 90","Hoses included","hour",31.69]
[5,8014,"Air Compressor","Sullivan-Palatek D375QH6CA","400 CFM","to 145","Hoses included","hour",68.709999999999994]
[6,8015,"Air Compressor","Grimmer-Schmidt 800","575 CFM","to 230","Hoses included","hour",108.12]
[7,8016,"Air Compressor","Ingersoll Rand XP1200WCU","1100 CFM","to 355","Hoses included","hour",172.25]
[8,8017,"Air Compressor","Sullair 1600DTQCA","1600 CFM","to 500","Hoses included","hour",182.81]
[9,8040,"Ambulance",null,"GVW 8600 Pounds","to 298",null,"hour",39.28]
[10,8041,"Ambulance",null,"GVW 11000 Pounds","to 414",null,"hour",48.32]
[11,8050,"Board, Arrow","Miscellaneous Trailer mounted Arrow Boards",null,"to 8","Trailer Mounted","hour",5.71]
[12,8051,"Board, Message","Miscellaneous CMSBBI",null,"to 5","Trailer Mounted","hour",11.62]
[13,8060,"Auger, Portable","Miscellaneous One Man Wheel Mount","16 In","to 6",null,"hour",2.0699999999999998]
[14,8061,"Auger, Portable","Miscellaneous Portable Earth Auger","18 In","to 13",null,"hour",5.09]
[15,8062,"Auger, Tractor Mntd","Miscellaneous TLB Auger Mount","36 In","to 13","Includes digger, boom & mounting hardware","hour",2.77]
[16,8063,"Auger, Truck Mntd","Miscellaneous DH-Avg","24 In","to 100","8'x8'x10' Drophammer","hour",48.94]
[17,8064,"Hydraulic Post Driver","Miscellaneous VIB-Avg","24 In","to 100","Hyd. Impact Hammer","hour",53.28]
[18,8065,"Auger","Horizontal Directional Boring\nMachine","250 X 100","to 300","DD-140B YR-2003","hour",235.66]
[19,8066,"Auger","Horizontal Directional Drills AVERAGE TO 7,000 LBS","50 X 100","to 24",null,"hour",71.44]
[20,8067,"Auger, Directional Boring Machine","Miscellaneous 7K - Horizontal Drilling\nMachines","7,000 lbs","to 25","Maximum Thrust 7K Lbs","hour",80.23]
[21,"8067-1","Directional Boring Machine","Vermeer D24X40A (disc. 2001)","Spindle Torque 4000 ft/lb","to 125",null,"hour",196.01]
[22,8068,"Bush Hog","New Holland 272GMS","72-IN cutting width",0,null,"hour",14.58]
[23,"8068-1","Bush Hog","Vermeer MC3700","12-FT cutting width",0,null,"hour",8.56]
[24,"8068-2","Bush Hog","Bush Hog 2820 Average Retail Rental Rates","85-IN cutting width",0,null,"hour",47.5]
[25,8070,"Automobile","2018 Ford Fusion S Sedan MSRP",null,"to 130",null,"hour",0.68]
[26,8071,"Automobile","2007 Ford F150 XL Reg Cab 4x2",null,"to 130",null,"hour",25.8]
[27,8072,"Automobile, Police","2018 Ford Police Interceptor sedan MSRP, Ford Government Sales",null,"to 250",null,"hour",0.68]
[28,8073,"Automobile, Police","2018 Ford Police Interceptor sedan MSRP,\nFord Government Sales",null,"to 250",null,"hour",19.89]
[29,8074,"Automobile, Police","Ford Explorer",null,"to 210",null,"hour",22.91]
[30,8075,"Motorcycle, Police","Honda ST1300PA Police Motorcycle MSRP",null,0,null,"hour",0.63]
[31,8076,"Automobile - Chevy Trailblazer","Avalanche 4x4 Gas (Disc. 2009)",null,"to 282",null,"mile",42.27]
[32,8077,"Automobile - Ford Expedition","On-Highway Light Duty Trucks - 4X4 1 1/2 310\nCONV DIESEL",null,"to 310","Fire Command Center","hour",30.2]
[33,8078,"MRAP Armored Rescue Vehicle","Military Surplus Vehicle",null,"375-450",null,"hour",64.180000000000007]
[34,8079,"MRAP C-MTV","gvwr 55000 Lbs",null,"to 350",null,"hour",59.91]
[35,8080,"All Terrain Vehicle","Polaris Youth Sportsman 110 EFI",null,"6.5-7.5",null,"hour",10.37]
[36,8081,"All Terrain Vehicle","Polaris Youth Phoenix 200",null,"7.6-8.6",null,"hour",11.14]
[37,8082,"All Terrain Vehicle","Ranger 150 EFI",null,"9.0-10.0",null,"hour",14.84]
[38,8083,"All Terrain Vehicle","RZR 200 EFI",null,"12-14.0",null,"hour",12.01]
[39,8084,"All Terrain Vehicle","Factored from 8080 ($$/cc)",null,"15-17",null,"hour",6.24]
[40,8085,"All Terrain Vehicle","Vitacci Terminator 300cc",null,"18-20",null,"hour",7.54]
[41,8086,"All Terrain Vehicle","Gasoline",null,"26-28","Rate interpolated","hour",12.52]
[42,8087,"All Terrain Vehicle","Gasoline",null,"26-28","Rate interpolated","hour",13.46]
[43,8088,"All Terrain Vehicle","Gasoline",null,"38-40","Rate interpolated","hour",17.2]
[44,8089,"All Terrain Vehicle",null,null,"44-46","Rate interpolated","hour",19.07]
[45,8090,"All Terrain Vehicle","Polaris Ranger XP900",null,"to 100",null,"hour",21.87]
[46,8091,"All Terrain Vehicle",null,null,0,"Rate interpolated","hour",23.74]
[47,8110,"Barge, Deck","Miscellaneous Deck Cargo Barges",null,0,null,"hour",50.8]
[48,8111,"Barge, Deck","Miscellaneous 300 -  Deck Cargo Barges","50'x35'x9'","N/A","Push by Tug-Boat","hour",53.15]
[49,8112,"Barge, Deck","Miscellaneous Deck 1100 -  Deck Cargo Barges","120'x45'x10-FT","N/A","Push by Tug-Boat","hour",93.74]
[50,8113,"Barge, Deck","Miscellaneous 1250 - Deck Cargo Barges","140'x45'x10-FT","N/A","Push by Tug-Boat","hour",103.75]
[null,"A","B","C","D","E","F","G","H"]
[null,"Cost Code","Equipment","Specifications/Manufacturer","Capacity or Size","HP","Notes","Unit","2023 Rates"]
[51,8120,"Boat, Tow","Miscellaneous 55 - Tow Boats","50' - 64'","to 870","Steel","hour",411.9]
[52,8121,"Boat, Tow","Miscellaneous 60 21 - Tow Boats","50' - 64'","to 1050","Steel","hour",481.57]
[53,8122,"Boat, Tow","Miscellaneous 70 30 -  Tow Boats","65' - 99'","to 1350","Steel","hour",712.28]
[54,8123,"Boat, Tow","Miscellaneous 120 -  Tow Boats","100' - 124''","to 2000","Steel","hour",1330.55]
[55,8124,"Airboat","815 AGIS Airboat w/spray unit",null,"to 556",null,"hour",32.18]
[56,8125,"Airboat","815 AGIS Airboat w/spray unit",null,"to 450",null,"hour",32.53]
[57,8126,"Swamp Buggy","ARGO Conquest 800 Outfitter",null,"to 36",null,"hour",35.99]
[58,8129,"Compactor, 2-ton pavement roller","Bid-well 2450","to 76'","to 40",null,"hour",30.1]
[59,8130,"Boat, Row","Miscellaneous Rowboat",null,"N/A","Heavy duty","hour",1.2]
[60,8131,"Boat, Runabout","Marine Equipment Runabouts - 13",null,"to 60",null,"hour",20.51]
[61,8132,"Boat, Tender","Marine Equipment Tenders - 12","to 16'","to 100","Inboard with 360 degree drive","hour",39.159999999999997]
[62,8133,"Boat, Push","Miscellaneous 400 -  Push Boats","to 49'","to 435","Flat hull","hour",254.4]
[63,8134,"Boat, Push","Miscellaneous 525 - Push Boats","50' - 74'","to 525","Flat hull","hour",311.94]
[64,8135,"Boat, Push","Miscellaneous 705 - Push Boats","50' - 74'","to 705","Flat hull","hour",400.41]
[65,8136,"Boat, Push","Miscellaneous 870 - Push Boats","50' - 74'","to 870","Flat hull","hour",460.26]
[66,8137,"Boat, Debris Removal Skiff","Debris Removal Skiff","Length 48'","to 200","New 2023 rate","hour",154.85]
[67,8138,"Boat, Jet","Boat, Jet (Woolridge Xtra Plus Inboard)","Length 20' 4\"","to 100","Shallow Draft","hour",30.93]
[68,8140,"Boat, Tug","Miscellaneous 100 - Inland Tug Boats","Length 16'","to 100","Shallow Draft","hour",54.53]
[69,8141,"Boat, Tug","Miscellaneous 175 - Inland Tug Boats","Length 18'","to 175","With Steering Nozzle","hour",88.35]
[70,8142,"Boat, Tug","Miscellaneous 250 - Inland Tug Boats","Length 26'","to 250","With Steering Nozzle","hour",118.32]
[71,8143,"Boat, Tug","Miscellaneous 380 - Inland Tug Boats","Length 40'","to 380","Standard Rudder","hour",238.82]
[72,8144,"Boat, Tug","Miscellaneous 700 - Inland Tug Boats","Length 51'","to 700","Twin Screw","hour",372.31]
[73,8145,"Jet Ski","2002 Seadoo GTX","Gasoline","to 155",null,"hour",34.32]
[74,8146,"Jet Ski","2018 Seadoo GTX","Gasoline","to 200",null,"hour",10.66]
[75,8147,"Boat, Inflatable Rescue Raft","Zodiac C310 Solid 10’2″",null,0,"No outboard engine. Max for the C310 is 10-HP.","hour",1.4]
[76,8148,"Boat, Runabout","Marine Equipment Runabouts - 13","Gasoline","to 50",null,"hour",20.51]
[77,8149,"Boat, removable engine","2000 Johnson Outboard Motor","Gasoline","to 220",null,"hour",1.96]
[78,8150,"Self Propelled Pavement Brooms","Lay-Mor 6HC/8HC",null,"to 37",null,"hour",69.040000000000006]
[79,8151,"Self Propelled Pavement Brooms","Broce RC-350 (disc. 2011)","96\"","to 76",null,"hour",95.85]
[80,8153,"Broom, Pavement, Mounted","Miscellaneous TRAC MOUNT PTO DRIVE - For\nMounting Pavement Brooms","72\"",null,"Power Takeoff","hour",4.59]
[81,8154,"Broom, Pavement, Pull","Miscellaneous TRACTION PT - Pull Type\nPavement Brooms","84\"",null,"Pull Type","hour",35.450000000000003]
[82,"8154-1","Skid Steer for Broom","Bobcat 453 (disc. 2001)",null,"to 15.7","for propelling mounted broom","hour",27.47]
[83,8155,"Self Propelled Pavement Brooms","Terramite TSS46","6 or 8-FT broom heads","to 33",null,"hour",63.05]
[84,8157,"Sweeper, Pavement","Elgin - Pelican SE","66\" & 36\" broom widths, 3.6-CY hopper","to 100",null,"hour",184.2]
[85,8158,"Sweeper, Pavement","Five Star - Broom Bear","Max 120” sweep width, 4.5-CY hopper","to 230","Freightliner FL70 engine","hour",215.77]
[86,8180,"Bus",null,null,"to 185",null,"hour",41.46]
[87,8181,"Bus",null,null,"to 100",null,"hour",31.99]
[88,8182,"Bus",null,null,"to 230",null,"hour",49.13]
[89,8183,"Blower",null,null,"to 27",null,"hour",19.079999999999998]
[90,"8183-1","Mosquito Sprayer","Adapco - Guardian 95 ES","to 186 CFM","to 9.5","Trailer Mounted","hour",23.33]
[91,8184,"Back-pack Blower",null,null,"to 4.4",null,"hour",1.9]
[92,8185,"Walkbehind Blower",null,null,"to 13",null,"hour",8.4600000000000009]
[93,8187,"Chainsaw","Bar Length = 20\"","3.0 cu in","to 3","Heavy Duty","hour",1.96]
[94,8188,"Chainsaw","Bar Length = 20\"","5.0 cu in","to 6","Heavy Duty","hour",3.16]
[95,8189,"Chainsaw","Bar Length = 20\"","6.0 cu in","to 7","Heavy Duty","hour",3.57]
[96,8190,"Chainsaw","Bar Length = 16\"","2.5 cu in","to 2","Light Duty","hour",2.02]
[97,8191,"Chainsaw","Bar Length = 25\"","7.0 cu in","to 9","Heavy Duty","hour",4.79]
[98,8192,"Chainsaw, Pole","Bar Length = 18\"",null,"N/A","Hydraulic","hour",2.76]
[99,8193,"Skidder, Log","Deere 748E (disc. 1995)","11.52 ft2","to 165",null,"hour",116.1]
[100,8194,"Skidder, Log","Deere 648G II (disc. 2000)","10.45 ft2","to 153",null,"hour",120.55]
[101,8195,"Cutter, Brush","Kershaw 800 (disc. 1998)","7 ft 8 in","to 185","Cutting Width","hour",139.24]
[102,8196,"Cutter, Brush","Kershaw 10-8 (disc. 1993)","7 ft 8 in","to 210","Cutting Width","hour",158.04]
[103,8197,"Cutter, Brush","Kershaw 1200 (disc. 2010)","9 ft 9 in","to 245","Cutting Width. Will process up to 8\" diameter\nmaterial","hour",193.89]
[104,8198,"Buncher, Cutter","Caterpillar 511 Feller Buncher","26.6 ft reach","to 247",null,"hour",229.05]
[null,"A","B","C","D","E","F","G","H"]
[null,"Cost Code","Equipment","Specifications/Manufacturer","Capacity or Size","HP","Notes","Unit","2023 Rates"]
[105,8199,"Log Trailer","Log Trailer (Fixed Gooseneck Trailer Level 3 40)","40 tons","N/A","Deck Length 13 - 47 ft","hour",15.77]
[106,8200,"Chipper, Brush","Woodchuck WC-9HD (disc. 2000)",null,"to 37",null,"hour",42.15]
[107,8201,"Chipper, Brush","Bandit 65 (disc. 2002)","6 In","to 33",null,"hour",55.16]
[108,8202,"Chipper, Brush","Vermeer 1600A (disc. 2002)","8 In","to 100","Trailer Mounted","hour",68.02]
[109,8203,"Chipper, Brush","Mitts & Merrill K12F6 (disc. 2006)","8 In","to 125","Trailer Mounted","hour",72.28]
[110,8204,"Chipper, Brush","Morbark Eeger Beever 1922","19 In","to 174",null,"hour",137.84]
[111,8208,"Loader - Tractor - Knuckleboom","2022 Barko 595ML Crawler Mounted Log\nLoader","7,770 lbs (32' radius) to 38,180 lbs 12'\nradius","to 165",null,"hour",197.06]
[112,8209,"Loader - Wheel","Deere 644L Hybrid","4.3 cu yd","to 231",null,"hour",94.2]
[113,8210,"Clamshell & Dragline, Crawler","Northwest 50-D/5065","149,999 lbs","to 238","Bucket not included in rate","hour",129.08000000000001]
[114,8211,"Clamshell & Dragline, Crawler","Northwest 180-D (76 ton)","250,000 lbs","to 520","Bucket not included in rate","hour",189.13]
[115,8212,"Clamshell, Truck mounted","American 5530","to 150,000 lbs","Carrier HP: 238\nCrane HP: 128",null,"hour",121.14]
[116,8218,"BOMAG Compactor","BW100AD-3",null,"to 33","Tandem Vibratory Compactor","hour",73.819999999999993]
[117,8219,"Compactor -2-Ton Pavement Roller","Single Drum Vibratory Compactor",null,"to 28",null,"hour",64.05]
[118,8220,"Compactor, Hand Held","Miscellaneous Hand Held Vibratory Compactor",null,"to 10",null,"hour",43.36]
[119,8221,"Compactor, towed, vibratory drum","Essick VR-54TEDD (disc. 1991)","Smooth Drum Width 54\"","to 45","Plus towing vehicle","hour",30.51]
[120,8222,"Compactor, vibratory drum","2013 BOMAG BW-120AD-4 (disc. 2013)","Drum Width 47.2\"","to 34",null,"hour",64.73]
[121,8223,"Compactor, pnuematic, wheel","BOMAG BW11-RH","68\" width","to 85",null,"hour",122.99]
[122,8224,"Vibratory Compactor","CATERPILLAR CP-563D (disc. 2003)","Drum Width 51\"","to 145","Single Drum","hour",155.03]
[123,8225,"Compactor, Sanitation","CMI Terex 3-35C (disc. 2009)",null,"to 200",null,"hour",227.07]
[124,8226,"Compactor, Sanitation","Terex TC400",null,"to 390",null,"hour",281.94]
[125,8227,"Compactor, Sanitation","836 (disc. 2001)",null,"to 450",null,"hour",463.02]
[126,8228,"Compactor, towed, pneumatic, wheel","Hercules PT-11","13 tons","N/A","11-Wheels (Towed)","hour",16.07]
[127,8229,"Compactor, Towed Steel Drum Static\nCompactor","Hercules GTD 54120",null,"N/A",null,"hour",25.54]
[128,8240,"Feeder, Grizzly","Misc Vibratory Grizzly Feeder, 35\" x 14', single\ndeck",null,"to 30",null,"hour",22.98]
[129,8241,"Feeder, Grizzly","Misc Vibratory Grizzly Feeder, 52\" x 20', single\ndeck",null,"to 40",null,"hour",29.63]
[130,8242,"Feeder, Grizzly","Misc Vibratory Grizzly Feeder, 62\" x 30',\ndouble deck",null,"to 75",null,"hour",61.22]
[131,8250,"Dozer, crawler","Komatsu D37E-2 (disc. 1993)",null,"to 75",null,"hour",114.27]
[132,8251,"Dozer, crawler","Case 850K LGP (disc. 2004)","2.6 cu yd","to 96",null,"hour",103.66]
[133,8252,"Dozer, crawler","Caterpillar D6E (disc. 1996)",null,"to 155",null,"hour",125.64]
[134,8253,"Dozer, crawler","Komatsu D87E-2 (disc. 2004)","9.2 cu yd","to 230",null,"hour",199.6]
[135,8254,"Dozer, crawler","Caterpillar D8R SERIES II (disc. 2013","11.4 cu yd","to 307",null,"hour",311.49]
[136,8255,"Dozer, crawler","Caterpillar D10T (disc. 2014)","24.2 cu yd","to 574","Semi-U Blade","hour",364.36]
[137,8256,"Dozer, crawler","Caterpillar D11R (disc. 2007)","45.0 cu yd","to 850",null,"hour",504.68]
[138,8260,"Dozer, wheel","Caterpillar 814F (disc. 2006)","3.49 cu yd","to 240",null,"hour",116.72]
[139,8261,"Dozer, wheel","Caterpillar 824G II (disc. 2006)","6.11 cu yd","to 339",null,"hour",178.87]
[140,8262,"Dozer, wheel","Caterpillar 834G (disc. 2006)","10.33 cu yd","to 477",null,"hour",228.4]
[141,8263,"Dozer, wheel","Caterpillar 844G (disc. 2009)",null,"to 625","Semi-U Blade","hour",390.77]
[142,8269,"Box Scraper","84\" Rome Model 5C Pull Scraper","4.1 cu yd","N/A","Add 60 HP tractor for pulling","hour",19.78]
[143,8270,"Bucket, Clamshell","Miscellaneous 1LW","1.0 CY","N/A","Includes teeth. Does not include\nClamshell & Dragline","hour",3.85]
[144,8271,"Bucket, Clamshell","Miscellaneous 2-1/2LW","2.5 CY","N/A","Includes teeth. Does not include\nClamshell & Dragline","hour",6.91]
[145,8272,"Bucket, Clamshell","Miscellaneous 5LW","5.0 CY","N/A","Includes teeth. Does not include\nClamshell & Dragline","hour",10.42]
[146,8273,"Bucket, Clamshell","Miscellaneous 7-1/2S","7.5 CY","N/A","Does not include Clamshell &\nDragline","hour",17.579999999999998]
[147,8275,"Bucket, Dragline","Miscellaneous 2L","2.0 CY","N/A","Does not include Clamshell &","hour",3.37]
[null,null,null,null,null,null,"Dragline"]
[148,8276,"Bucket, Dragline","Miscellaneous 5L","5 CY","N/A","Does not include Clamshell & Dragline","hour",8.33]
[null,"A","B","C","D","E","F","G","H"]
[null,"Cost Code","Equipment","Specifications/Manufacturer","Capacity or Size","HP","Notes","Unit","2023 Rates"]
[149,8277,"Bucket, Dragline","Miscellaneous 10L","10 CY","N/A","Does not include Clamshell & Dragline","hour",11.38]
[150,8278,"Bucket, Dragline","Miscellaneous 14M","14 CY","N/A","Does not include Clamshell & Dragline","hour",16.07]
[151,8280,"Excavator, Hydraulic","Bobcat 331E (disc. 2006)","0.06 CY","to 40","Crawler, includes bucket","hour",48.97]
[152,8281,"Excavator, Hydraulic","Komatsu PC120-6 (disc. 2008)","0.61 CY","to 89","Crawler, includes bucket","hour",96.16]
[153,8282,"Excavator, Hydraulic","Hyundai R210LC-7A (disc. 2010)","1.2 CY","to 143","Crawler, includes bucket","hour",100.52]
[154,8283,"Excavator, Hydraulic","Komatsu PC300 LC-7 (disc. 2007)","2.56 CY","to 246","Crawler, includes bucket","hour",162.85]
[155,8284,"Excavator, Hydraulic","Deere 650D LC (disc. 2010)","4.04 CY","to 463","Crawler, includes bucket","hour",290.23]
[156,8285,"Excavator, Hydraulic","Caterpillar 6015","7.8 CY","to 665","Crawler, includes bucket","hour",580.96]
[157,8286,"Excavator, Hydraulic","Miscellaneous 150.1-200 MTONS","12.6 CY","to 870","Crawler, includes bucket","hour",848.28]
[158,8287,"Excavator, Truck Mounted","2008 Gradall XL 3100 III (disc. 2011)","0.57 CY","to 184","Truck Mounted","hour",214.08]
[159,8288,"Excavator, Truck Mounted","2003 Gradall XL 4100 III (Disc. 2011)","0.62 CY","to 238","Truck Mounted","hour",253.26]
[160,8289,"Excavator, Truck Mounted","2006 Gradall XL 5100 (disc. 2006)","1.25 CY","to 230","Truck Mounted","hour",284.8]
[161,8290,"Trowel, Concrete","Walk-Behind Concrete Floor Trowel","48 IN","to 12",null,"hour",5.77]
[162,8300,"Forklift","Toyota 42-6FGU25 (disc. 2000)","5,000 Lbs","to 59",null,"hour",21.31]
[163,8301,"Forklift","Mitsubishi FD55N","12,000 Lbs","to 77",null,"hour",26.47]
[164,8302,"Forklift","Komatsu FD80T-8 (disc. 2005)","18,000 Lbs","to 130",null,"hour",47.48]
[165,8303,"Forklift","Taylor TE-450M (disc. 1998)","45,000 lbs","to 215",null,"hour",95.17]
[166,8306,"Fork Lift material handler","Caterpillar TH360B (disc. 2007)","7,000 lbs","to 95",null,"hour",91.61]
[167,8307,"Fork Lift material handler","Caterpillar TH460B (disc. 2007)","9,000 Lbs","to 95",null,"hour",121.27]
[168,8308,"Fork Lift material handler","Caterpillar TH560B (disc. 2008)","10,000 lbs","to 118","10,000 Lbs","hour",132.63999999999999]
[169,8309,"Fork Lift Accessory","Top Clamp Forks for handling logs, pipes,\nbeams, etc. (attaches to forklifts)",null,null,null,"hour",4.37]
[170,8310,"Generator","Miscellaneous GAS 5,500 W","5.5 KW","to 5.5","Portable; No Enclosure","hour",4.8600000000000003]
[171,8311,"Generator","Miscellaneous DIESEL 17,000 W","17 KW","to 17","Portable; No Enclosure","hour",14.57]
[172,8312,"Generator","Miscellaneous DIESEL 45 KW","47.5 kW",47.5,"Portable; No Enclosure","hour",24.2]
[173,8313,"Generator","Miscellaneous DIESEL 100 KW","100 KW","to 100","Portable; No Enclosure","hour",56.7]
[174,8314,"Generator","Miscellaneous DIESEL 150 KW","150 KW","to 150","Portable; No Enclosure","hour",85]
[175,8315,"Generator","Miscellaneous DIESEL 225 KW","210 KW","to 210","Portable; No Enclosure","hour",105.65]
[176,8316,"Generator","Miscellaneous DIESEL 300 KW","280 KW","to 280","Open or Enclosed","hour",133.5]
[177,8317,"Generator","Miscellaneous DIESEL 350 KW","350 KW","to 350","Open or Enclosed","hour",154.19999999999999]
[178,"8317-400","Generator","Miscellaneous DIESEL 400 KW","400 KW","to 400","Open or Enclosed","hour",200.52]
[179,8318,"Generator","Miscellaneous DIESEL 500 KW","500 KW","to 500","Open or Enclosed","hour",249.54]
[180,8319,"Generator","Miscellaneous DIESEL 700 KW","700 KW","to 700","Open","hour",314.74]
[181,8320,"Generator","Caterpillar XQC1200 (Enclosed)","1150 KW","to 1500","Prime Output @ 60 Hz 1260 KW","hour",586.29]
[182,8321,"Generator","Generator, 2,500 KW","2500 KW","to 2500",null,"hour",686.16]
[183,8322,"Generator","Miscellaneous DIESEL 1000 KW","1000 KW","to 1000","Open","hour",583.21]
[184,8323,"Generator","Miscellaneous DIESEL 1500 KW","1500 KW","to 1500","Enclosed","hour",892.32]
[185,8324,"Generator","Caterpillar XQC1200 (Enclosed)","1150 KW","to 1150","Enclosed","hour",586.29]
[186,8325,"Generator","Miscellaneous DIESEL 40 KW","40 KW","to 40",null,"hour",28.7]
[187,8326,"Generator","Miscellaneous DIESEL 25 KW","20 KW","to 35",null,"hour",15.31]
[188,8327,"Generator","Miscellaneous DIESEL 800 KW","800 KW","to 800","Enclosed","hour",363.63]
[189,8328,"Generator","Miscellaneous DIESEL 900 KW","900 KW","to 900","Enclosed","hour",468.35]
[190,8329,"Generator","Miscellaneous DIESEL 1000 KW","1000 KW","to 1000","Enclosed","hour",583.21]
[191,8330,"Graders","Ingram MG690 (disc. 1999)","10 Ft","to 110","Rigid Frame equipment","hour",75.12]
[192,8331,"Graders","CAT 12H (disc. 2007)","12 Ft","to 145","Articulated Frame equipment","hour",116.57]
[193,8332,"Graders","CAT 160H (disc. 2007)","14 Ft","to 180","Articulated Frame equipment","hour",164.35]
[194,8334,"Graders","CAT 140","168 x 24 x 0.9 ft","to 250","Articulated Frame equipment","hour",167.74]
[195,8350,"Hose, Discharge","Miscellaneous DH-3/25","3 In Discharge Diameter","N/A","Per 25 foot length Includes couplings","hour",0.15]
[196,8351,"Hose, Discharge","Miscellaneous DH-4/25","4 in Discharge Diameter","N/A","Per 25 foot length Includes couplings","hour",0.23]
[197,8352,"Hose, Discharge","Miscellaneous DH-6/25","6 In Discharge Diameter","N/A","Per 25 foot length Includes couplings","hour",0.6]
[198,8353,"Hose, Discharge","Discharge Hose, 8-IN","8 In Discharge Diameter","N/A","Per 25 foot length Includes couplings","hour",0.66]
[199,8354,"Hose, Discharge","Discharge Hose, 12-IN","12 In Discharge Diameter","N/A","Per 25 foot length Includes couplings","hour",0.97]
[200,8355,"Hose, Discharge","Discharge Hose, 16-IN","16 In Discharge Diameter","N/A","Per 25 foot length Includes couplings","hour",1.8]
[201,8356,"Hose, Suction","Suction Hose - SH-3/25","3 In Diameter","N/A","Per 25 foot length Includes couplings","hour",0.28000000000000003]
[202,8357,"Hose, Suction","Miscellaneous SH-4/25","4 In Diameter","N/A","Per 25 foot length Includes couplings","hour",0.32]
[203,8358,"Hose, Suction","Miscellaneous SH-6/25","6 In Diameter","N/A","Per 25 foot length Includes couplings","hour",1.1100000000000001]
[204,8359,"Hose, Suction","Suction Hose, 8-IN","8 In Diameter","N/A","Per 25 foot length Includes couplings","hour",1.18]
[null,"A","B","C","D","E","F","G","H"]
[null,"Cost Code","Equipment","Specifications/Manufacturer","Capacity or Size","HP","Notes","Unit","2023 Rates"]
[205,8360,"Hose, Suction","Suction Hose, 12-IN","12 In Diameter","N/A","Per 25 foot length Includes couplings","hour",1.82]
[206,8361,"Hose, Suction","Suction Hose, 16-IN","16 In Diameter","N/A","Per 25 foot length Includes couplings","hour",3.48]
[207,8380,"Loader, Crawler","ASV PT-30 (disc. 2010)","1600 lb Tipping Load","to 33.7","Compact Track Loader","hour",43.49]
[208,8381,"Loader, Crawler","Bobcat T190 (disc. 2013)","14.0 CF","to 66","Compact Track Loader","hour",62.21]
[209,8382,"Loader, Crawler","Deere 605C (disc. 2020)","1.7 cu yd","to 99","Standard Crawler Loader, includes bucket","hour",69.08]
[210,8383,"Loader, Crawler","Caterpillar 963C (disc. 2007)","3.2 cu yd","to 158","Standard Crawler Loader, includes bucket","hour",170.79]
[211,8384,"Loader, Crawler","Caterpillar 973C (disc. 2010)","4.19 cu yd","to 239","Standard Crawler Loader, includes bucket","hour",208.16]
[212,8390,"Loader, Wheel","Gehl 280 (disc. 2009)","0.7 cu yd","to 39","Non-Articulated Wheel Loader","hour",37.31]
[213,8391,"Loader, Wheel","Gehl AWS36 (disc. 2012)","1.0 cu yd","to 60","Non-Articulated Wheel Loader","hour",59.65]
[214,8392,"Loader, Wheel","Caterpillar 914G (disc. 2014)","1.7 cu yd","to 95","Articulated Wheel Loader","hour",67.540000000000006]
[215,8393,"Loader, Wheel","New Holland W110B TC - 4WD","2.1 cu yd","to 123","Articulated Wheel Loader","hour",76.62]
[216,8394,"Loader, Wheel","Deere 644K - 4WD (disc. 2019)","4.2 cu yd","to 229","Articulated Wheel Loader","hour",95.09]
[217,8395,"Loader, Wheel","Case 921C - 4WD (disc. 2008)","5.0 cu yd","to 248","Articulated Wheel Loader","hour",109.99]
[218,8396,"Loader, Wheel","CAT 972H (Disc. 2012) - 4WDs","6.0 cu yd","to 287","Articulated Wheel Loader","hour",118.5]
[219,8397,"Loader, Wheel","Komatsu WA500-6 (disc. 2012)","7.3 cu yd","to 353","Articulated Wheel Loader","hour",148.26]
[220,8398,"Loader, Wheel","Komatsu WA600-6 (disc. 2019); 4WD","8.4 cu yd","to 502","Articulated Wheel Loader","hour",211.41]
[221,8399,"Tractor, Wheel","John Deere 6605 (disc. 2005)","100 IN.","to 95","Does not include mower attachment. Add\n$5.24/Hour for flail Industrial towed mower","hour",53.37]
[222,8400,"Tractor, Wheel","New Holland T6030 (disc. 2012)",null,"to 115","Bucket attachment not included in rate","hour",71.05]
[223,8401,"Loader, Tractor, Wheel","Case 580 SUPER L (disc. 2000)","0.87 CY","to 80","Includes backhoe","hour",62.62]
[224,8410,"Mixer, Concrete Portable","CMG-4S - Portable Tilt Drum Concrete Mixer","4.0 cu ft","to 5","Side Dump","hour",2.78]
[225,8411,"Mixer, Concrete Portable","CMG-12E - Portable Tilt Drum Concrete Mixer","12.0 cu ft","to 2","Electric Powered, Side Dump","hour",3.72]
[226,8412,"Mixer, Concrete, Trailer Mntd","NTD-11E - Portable Trailer Mounted Concrete\nMixer","11.0 cu ft","to 10","Electric Powered, Side Dump","hour",9.89]
[227,8413,"Mixer, Concrete, Trailer Mntd","NTD-16G - Portable Trailer Mounted Concrete","16.0 cu ft","to 25","Gas Powered, Trailer Mounted","hour",20.420000000000002]
[null,null,null,"Mixer"]
[228,8414,"Truck, Concrete Mixer","XCMG G10NX1","13.1 cu yd","to 331.2","Self-Propelled (Diesel)","hour",82.58]
[229,8419,"Breaker, Pavement Hand-held","Miscellaneous STANDARD 25-30 LBS","80 - 90 Lbs","N/A","Air powered, add compressor","hour",0.98]
[230,8420,"Breaker, Pavement","Arrow Master 1350",null,"to 80","Self-Propelled (Diesel)","hour",61.22]
[231,8421,"Vibrator, Concrete","2-7/21","2.5 in head, 16 ft shaft","to 2","Electric Powered","hour",1.39]
[232,8423,"Spreader, Chip","Etnyre Chip Spreader","2.8 CY","to 210",null,"hour",94.46]
[233,8424,"Spreader, Chip","Bearcat 2002","3.8 CY","to 210",null,"hour",129.97999999999999]
[234,8425,"Spreader, Chip, Mounted","8-CONVEYOR - Chip Spreaders for Tail Gate\nMounting","8 Ft","to 6","Trailer & truck mounted.","hour",4.47]
[235,8430,"Paver, Asphalt, Towed","Layton F-525","96-144 in screed width","to 7","Does not include towing vehicle","hour",13.55]
[236,8431,"Paver, Asphalt","BOMAG BF223C Specs (disc. 2008)","98.88 cu ft","to 51","Maximum Paving Width 157.48 in","hour",146.53]
[237,8432,"Paver, Asphalt","BOMAG BF815 (disc. 2010)","8.0 Tons","to 85","96-144 in screed width, 6 in depth","hour",225.42]
[238,8433,"Paver, Asphalt","Caterpillar AP655F","250.0 Tons","to 175","Up to 210.0 ft/min paving speed","hour",331.93]
[239,8434,"Paver, Asphalt","Cedarapids CR452 (disc. 2020)","14.0 Tons, 219.0 CF","to 220","Up to 290.0 ft/min paving speed","hour",337.67]
[240,8436,"Pickup, Asphalt","Cadarapids CR-MS-4 (disc. 2020)",null,"to 113","Does not include towing vehicle","hour",143.46]
[241,8437,"Pickup, Asphalt","Cedarapids CR MS-2",null,"to 113","Does not include towing vehicle","hour",204.01]
[242,8438,"Pickup, Asphalt","Blaw Knox MC330 (disc. 2007)",null,"to 184",null,"hour",320.54000000000002]
[243,8439,"Pickup, Asphalt","Roadtec MTV-1000C",null,"to 275","material transfer vehicle","hour",505.25]
[244,8440,"Striper, Self Propelled","SELF-PROP 40","40 Gal","to 22",null,"hour",16.100000000000001]
[245,8441,"Striper, Self Propelled","SELF-PROP 90","90 Gal","to 60",null,"hour",24.54]
[246,8442,"Striper, Self Propelled","Miscellaneous SELF-PROP 120","120 Gal","to 122",null,"hour",47.99]
[247,8445,"Striper, Truck Mounted","TRKMNT - Truck Mounted","120 Gal","to 460",null,"hour",92.74]
[248,8446,"Striper, Walk-behind","WB SINGLE LINE","12 Gal","to 5","Single Line","hour",2.93]
[249,8447,"Paver Accessory - Belt Extension","Miscellaneous 30 X 60'","30\" x 60'","to 20","Electric Powered","hour",28.84]
[250,8450,"Plow, Snow, Mounted Grader","VP-10 - Grader Snow Removal Equipment","126 in (10.5-FT)","N/A","Add 8331 Grader","hour",15.31]
[251,8451,"Plow, Snow, Mounted Grader","SW-14 - Grader Snow Removal Equipment","168 in (14-FT)","N/A","Add 8332 Grader","hour",17.7]
[252,8452,"Plow, Truck Mounted","One Way Plow","13 Ft","N/A","Add 8722 truck","hour",14.8]
[253,8453,"Plow, Truck Mounted","V-Plow R11 Leveling Wing","11 Ft","N/A","With leveling wing, add 8722 truck","hour",25.89]
[254,8455,"Spreader, Sand","TAILGATE","Tailgate, Chassis mounted","PTO","Truck not included","hour",5.0199999999999996]
[255,8456,"Spreader, Sand","DUMP BODY","Dump Body mounted","PTO","Truck not included","hour",8.1]
[256,8457,"Spreader, Sand","TRUCK MNT","Truck Mounted, (10yd)","N/A","Truck not included","hour",11.05]
[257,8458,"Spreader, Chemical","Miscellaneous 5 Spreader","5.0 cu yd","to 4","Trailer & truck mounted","hour",5.6]
[null,"A","B","C","D","E","F","G","H"]
[null,"Cost Code","Equipment","Specifications/Manufacturer","Capacity or Size","HP","Notes","Unit","2023 Rates"]
[258,8465,"Pump, Trash Pump","Miscellaneous 6 DIESEL","6 In Pump","to 70","Self Priming, 90000 gph, add hoses","hour",60.83]
[259,8466,"Pump, Trash Pump","Miscellaneous 4 DIESEL","4 In Pump","to 60","Self Priming, 44000 gph, add hoses","hour",37.26]
[260,8467,"Pump, Trash Pump","Miscellaneous 4 DIESEL","4 In Pump","to 20","Self Priming, 33000 gph, add hoses","hour",20.74]
[261,8468,"Pump, Trash Pump","Miscellaneous 3 DIESEL","3 In Pump","to 15","Self Priming, 18000 gph, add hoses","hour",13.62]
[262,8469,"Pump, Trash Pump","Miscellaneous 2 DIESEL","2 In Pump","to 7","Self Priming, 10000 gph, add hoses","hour",11.72]
[263,8470,"Pump, Lightweight Centrifugal","6M Alum./PORT.","1.5 In pump","to 4","6500 gph, add hoses","hour",5.19]
[264,8471,"Pump, Lightweight Centrifugal","8M Alum./PORT.","2 In Pump","to 5","10000 gph, add hoses","hour",5.52]
[265,8472,"Pump, Lightweight Centrifugal","18M ALUM./PORT.","3 In Pump","to 8","6,500 gph, add hoses","hour",6.91]
[266,8473,"Pump, Heavy Duty Centrifugal","20M GASOLINE ELECTRIC START","3 In Pump","to 18","20000 gph, add hoses","hour",10.08]
[267,8474,"Pump, Electric Submersible","Miscellaneous 4  Three Phase 25 HP","4 In Pump","to 25","50.0 ft cable length, add hoses","hour",10.99]
[268,8475,"Pump, Electric Submersible","Miscellaneous 6  Three Phase 35 HP","6 In Pump","to 35","50.0 ft cable length, add hoses","hour",12.59]
[269,8476,"Pump, Centrifugal","40M GASOLINE ELECTRIC START","4 In Pump","to 60","40,000 gph, add hoses","hour",26.55]
[270,8477,"Pump, Centrifugal","90M GASOLINE ELECTRIC START Pump","6 In Pump","to 85","90,000 gph, add hoses","hour",36.729999999999997]
[271,8478,"Pump, Centrifugal","350M DIESEL ELECTRIC START Pump","12 In Pump","to 90","350,000 gph, add hoses","hour",42.28]
[272,8479,"Pump",null,null,"to 200",null,"hour",62.93]
[273,8480,"Pump",null,null,"to 275",null,"hour",84.66]
[274,8481,"Pump",null,null,"to 350",null,"hour",101.18]
[275,8482,"Pump",null,null,"to 425",null,"hour",122.68]
[276,8483,"Pump",null,null,"to 500",null,"hour",145.22999999999999]
[277,8484,"Pump",null,null,"to 575",null,"hour",169.17]
[278,8485,"Pump",null,null,"to 650",null,"hour",191.9]
[279,8486,"Aerial Lift, Truck Mounted","BB150 - Telescopic Boom Aerial Lift","41 Ft","N/A","Platform Cap.: 670 lbs. Add this to a truck for\ntotal lift and truck rate","hour",10.82]
[280,8487,"Aerial Lift, Truck Mounted","BB180 - Telescopic Boom Aerial Lift","61 Ft","N/A","Platform Cap.: 700 lbs. Add this to a truck for\ntotal lift and truck rate","hour",23.9]
[281,8488,"Aerial Lift, Truck Mounted","BB1100 - Articulating Boom Aerial Lift","81 Ft","N/A","Platform Cap.: 600 lbs. Add this to a truck for\ntotal lift and truck rate","hour",39.619999999999997]
[282,8489,"Aerial Lift, Truck Mounted","BB1101 - Articulating Boom Aerial Lift","101 Ft","N/A","Platform Cap.: 700 lbs. Add this to a truck for\ntotal lift and truck rate","hour",64.86]
[283,8490,"Aerial Lift, Self Propelled","JLG 40IC (disc. 2000)","40 Ft","to 22","Platform Cap.: 500 lbs.","hour",62.39]
[284,8491,"Aerial Lift, Self Propelled","Niftylift SD50","60 Ft. Ht.","to 21.6","Articulating, Platform Cap.: 500 lbs.","hour",72.67]
[285,8492,"Aerial Lift, Self Propelled","S9070RT-HC","70 Ft. Ht.","to 24.9","Scissor Lift, Platform Cap.: 2000 lbs.","hour",116.14]
[286,8493,"Aerial Lift, Self Propelled","JLG 1250AJP","125 Ft. Ht.","to 75","Articulating, Platform Cap.: 500 lbs.","hour",171.37]
[287,8494,"Aerial Lift, Self Propelled","JLG 1500AJP","150 Ft. Ht.","to 99.8","Articulating, Platform Cap.: 1000 lbs.","hour",189.7]
[288,8495,"I.C. Aerial Lift, Self-Propelled","Miscellaneous BB1-40","75\"x155\", 40Ft Ht.","to 80","Scissor Lift","hour",80.28]
[289,8496,"Crane, Truck Mounted","JLG 1000BT","20,000 LBS","N/A","55.0 ft boom length","hour",39.32]
[290,8497,"Crane, Truck Mounted","JLG 1700A","36,000 LBS","N/A","75.0 ft boom length","hour",55.94]
[291,8498,"Crane, Truck Mounted","Manitex - 30100C","60,000 LBs","N/A","100.0 ft boom length","hour",85.13]
[292,8499,"Trash Pump","Miscellaneous 3 DIESEL","3 In Pump","to 15","Self Priming, 25000 gph, add hoses","hour",13.68]
[293,8500,"Crane, Yard","Shuttlelift 3330FL","17000 lbs/8.5 tons","to 70","30.2 ft boom length","hour",177.29]
[294,8501,"Crane, Rough Terrain","Broderson RT-300-2C","29983 lbs/15 tons","to 155","60 ft boom length","hour",316.63]
[295,8502,"Crane, All Terrain","Grove GMK2035E","69886 lbs/34.9 tons","to 157","95 ft boom length","hour",255.54]
[296,8503,"Crane, All Terrain","Grove GMK3055","119931 lbs/60 tons","to 240","141 ft boom length","hour",290.08]
[297,8504,"Crane, Crawler Mounted Lattice Boom","American HC-125 (disc. 2004)","250004 lbs/125 tons","to 245","300 ft boom length","hour",348.24]
[298,8510,"Saw, Concrete","Miscellaneous 4.6-14MC","14 In","to 14","4.625 in max cut depth","hour",11.89]
[299,8511,"Saw, Concrete","Miscellaneous 10-26SPC","26 In","to 25","10.625 in max cut depth","hour",19.739999999999998]
[300,8512,"Saw, Concrete","Miscellaneous 20-48SPC","48 In","to 65","20.75 in max cut depth","hour",42.16]
[301,8513,"Chain Trencher, Wheel Mounted","Vermeer V8550A (disc. 2008)","60 in depth","to 83",null,"hour",108.77]
[302,8514,"Chain Trencher, Wheel Mounted","Vermeer V120","60 in depth","to 107",null,"hour",300.82]
[303,8517,"Jackhammer (dry)","Miscellaneous 25DRY","25 lbs","Air","Add air compressor and hoses","hour",1.4]
[304,8518,"Jackhammer (wet)","Miscellaneous 30WET","30 lbs","Air","Add air compressor and hoses","hour",1.6]
[305,8521,"Scraper","CAT 611 (Disc. 2004)","15 cu yd heaped","to 262.2",null,"hour",239.81]
[306,8522,"Scraper","621G (disc. 2010)","22 cu yd heaped","to 365",null,"hour",342.28]
[307,8523,"Scraper","631G (disc. 2010)","34 cu yd heaped","to 500",null,"hour",573.69000000000005]
[308,8524,"Scraper","Caterpillar 651E (Disc.2006)","44 cu yd heaped","to 604",null,"hour",653.53]
[309,8540,"Loader, Skid Steer","Bobcat S70","5.8 cu yd","to 23.5",null,"hour",37.32]
[310,8541,"Loader, Skid Steer","Bobcat S205","14 cu yd","to 66",null,"hour",53.24]
[null,"A","B","C","D","E","F","G","H"]
[null,"Cost Code","Equipment","Specifications/Manufacturer","Capacity or Size","HP","Notes","Unit","2023 Rates"]
[311,8542,"Loader, Skid Steer","Bobcat S300 (disc. 2011)","15.4 cu yd","to 81",null,"hour",78.88]
[312,8549,"Snow Plower, Salt Spreader","Towed  Salt Spreader/Snow Plower","26 ft X 8 ft",0,null,"hour",21]
[313,8550,"Snow Blower, Truck Mounted","Miscellaneous Mechanical","60 in Cutting Width","to 30",null,"hour",31.25]
[314,8551,"Snow Blower, Truck Mounted","Miscellaneous 1400 - Rotary Snow Blowers","99.375 in Cutting Width","to 200",null,"hour",106.21]
[5,8552,"Snow Blower, Truck Mounted","Miscellaneous 2000 - Rotary Snow Blowers","102 in Cutting Width","to 340",null,"hour",166.14]
[316,8553,"Snow Blower, Truck Mounted","Miscellaneous 2400 - Rotary Snow Blowers","102 in Cutting Width","to 400",null,"hour",184.14]
[317,8558,"Snow Thrower, Walk Behind","Toro Power Max® 826 OE (37780)","40 ft throwing distance","to 5",null,"hour",3.68]
[318,8559,"Snow Thrower, Walk Behind","Toro 74523 MultiForce 60-in Blower",null,"to 25","60-IN capable mower with 48-IN snow blower\nattachment","hour",17.93]
[319,"8559-1","SnowBroom","Oshkosh Snow Broom",null,"to 450-500",null,"hour",224.84]
[320,8560,"Snow Blower, Self Propelled","Miscellaneous 2000","2000 ft per minute","to 400","102 in cutting width","hour",220.59]
[321,8561,"Snow Blower, Self Propelled","Miscellaneous 2500","2500 ft per minute","to 500","120 in cutting width","hour",249.87]
[322,"8561-1","Snow Blower","MTE Snow Mauler",null,"to 428",null,"hour",317.7]
[323,"8561-2","Snow Blower","Vammas PSB 4500MTE",null,"to 420",null,"hour",325.04000000000002]
[324,8562,"Snow Blower","Miscellaneous 3500","3500 ft per minute","to 600","96.0 in cutting width","hour",287]
[325,8563,"The Vammas 4500","Snow Remover",null,"to 428",null,"hour",322.14999999999998]
[326,8564,"The Vammas 5500","RM300",null,"to 350",null,"hour",262.68]
[327,8565,"Oshkosh Pavement Sweeper","H-Series",null,"to 420",null,"hour",283.74]
[328,8569,"Dust Control De-ice Unit","Hydro Pump with 100-ft of 1/2-in hose",null,null,null,"hour",4.3899999999999997]
[329,8570,"Loader-Backhoe, Wheel","Kubota L39 Backhoe (disc. 2012)","0.5 CY Loader bucket","to 30.5",null,"hour",49.41]
[330,8571,"Loader-Backhoe, Wheel","CASE 580M","1.0 CY Loader bucket","to 80",null,"hour",58.73]
[331,8572,"Loader-Backhoe, Wheel","CAT 420F (Disc. 2017)","1.2 CY Loader bucket","to 93",null,"hour",91.69]
[332,8573,"Loader-Backhoe, Wheel","CAT 430E IT","1.31 CY Loader bucket","to 102",null,"hour",98.35]
[333,8580,"Distributor,  Asphalt","Miscellaneous 550 GAL","550 gal","to 16",null,"hour",16.579999999999998]
[334,8581,"Distributor,  Asphalt","Miscellaneous 1000G","1000-gal","to 38",null,"hour",26.88]
[335,8582,"Distributor,  Asphalt","Miscellaneous 4000G","4000-gal",null,"Power Takeoff","hour",34.659999999999997]
[336,8583,"Distributor",null,null,null,null,"hour",53.99]
[337,8584,"Distributor","Etnyre Chip Spreader","13-FT","to 210",null,"hour",94.46]
[338,8590,"Trailer, Rear Dump","Miscellaneous STANDARD 24 20","20.0 cu yd 24.0 t","N/A",null,"hour",10.17]
[339,8591,"Trailer, Rear Dump","Cap.: 30 cy; Deck Length: 16-ft to 18-ft; Deck:\nLevel",null,"N/A",null,"hour",16.57]
[340,8600,"Trailer, Equipment","Miscellaneous LEVEL 2 30","30 ton","N/A",null,"hour",15.22]
[341,8601,"Trailer, Equipment","Miscellaneous DROP 2 40","40 ton","N/A",null,"hour",17.100000000000001]
[342,8602,"Trailer, Equipment","Miscellaneous DROP 3 60","60 ton","N/A",null,"hour",21.59]
[343,8603,"Trailer, Equipment","Miscellaneous FLUSH 4 120","120 ton","N/A",null,"hour",33.82]
[344,8610,"Trailer, Water","Miscellaneous 1200 4000","4000 gallon","N/A",null,"hour",14.91]
[345,8611,"Trailer, Water","Miscellaneous 1200 6000","6000 gallon","N/A",null,"hour",18.489999999999998]
[346,8612,"Trailer, Water","Miscellaneous 1500 10000","10000 gallon","N/A",null,"hour",21.95]
[347,8613,"Trailer, Water","Miscellaneous 1500 14000","14000 gallon","N/A",null,"hour",27.87]
[348,8614,"Truck - Water Tanker","Miscellaneous GAS 4X2 1500","1500 gallon",175,null,"hour",40.76]
[349,8620,"Trailer Mounted Brush Chippers","Chipping Capacity: 25-IN HP 600","25-IN","to 600",null,"hour",197.31]
[350,8621,"Tub Grinder","Morbark 223","Chipping Capacity: 23-IN","to 630",null,"hour",180.37]
[351,8622,"Tub Grinder","Morbark 40/36 Tub Grinder","Chipping Capacity: 24-IN","800 to 850",null,"Hour",266.91000000000003]
[352,8623,"Tub Grinder","Morbark 50/48X Tub Grinder","Chipping Capacity: 28-IN","to 1050",null,"hour",355.2]
[353,8627,"Horizontal Grinder","Vermeer HG6000 Horizontal Grinder",null,"to 630",null,"hour",73.25]
[354,8628,"Stump Grinder","Vermeer SC852",null,"to 74",null,"hour",60.21]
[355,8629,"Stump Grinder","24-in Grinding Wheel",null,"to 110",null,"hour",57.38]
[356,8630,"Sprayer, Seed","Reinco HG-5-HA, Trailer Mounted",null,"to 20",null,"hour",13.34]
[357,8631,"Sprayer, Seed","Reinco HG-10GXA2, Trailer Mounted",null,"to 35","Single Drum","hour",20.39]
[358,8632,"Sprayer, Seed","Reinco HG-30GX, Truck Mounted",null,"to 115",null,"hour",40.1]
[359,8633,"Mulcher, Trailer Mntd","Finn B70",null,"to 33.5",null,"hour",24.71]
[360,8634,"Mulcher, Trailer Mntd","Reinco M65",null,"to 54","11-Wheels (Towed)","hour",40.840000000000003]
[361,8635,"Mulcher, Trailer Mntd","Reinco M90",null,"to 115",null,"hour",59.32]
[362,8636,"Scraper","Wirtgen WR2400",null,"to 563",null,"hour",628.17999999999995]
[363,8637,"Trailer (Off Highway Bottom Dump)","Load King 2842","28.0 cu yd","N/A",null,"hour",26.29]
[364,8638,"Rake","Barber Beach Sand Rake 600HD",null,0,null,"hour",19.55]
[365,8639,"Chipper","Wildcat 626 Cougar",null,0,null,"hour",43.84]
[null,"A","B","C","D","E","F","G","H"]
[null,"Cost Code","Equipment","Specifications/Manufacturer","Capacity or Size","HP","Notes","Unit","2023 Rates"]
[366,8640,"Trailer, Office","Miscellaneous 8X24",null,0,null,"hour",1.98]
[367,8641,"Trailer, Office","Miscellaneous 8X32",null,0,null,"hour",2.44]
[368,8642,"Trailer, Office","Miscellaneous 10X32",null,0,null,"hour",3.4]
[369,8643,"Trailer",null,null,0,null,"hour",48.17]
[null,8644,"Trailer, Covered Utility Trailer","7-ft x 16-ft",null,0,null,"hour",7.29]
[371,8645,"Trailer, Dodge Ram","12 Station Portable Shower Trailer",null,"to 101",null,"hour",37.58]
[372,8646,"Trailer, Dodge",null,null,"to 200",null,"hour",35.44]
[373,null,"Trencher","Seaman-Parsons T20",null,"to 20",null,"hour",50.19]
[374,8651,"Trencher","Seaman-Parsons T500",null,"to 58",null,"hour",79.2]
[375,8652,"Trencher/Ditcher","New Holland B115B (disc. 2012)","1.5CY","to 108",null,"hour",76.790000000000006]
[376,8653,"Trencher/Ditcher","New Holland T8.330 (disc. 2014)",null,"to 284",null,"hour",167.77]
[377,8654,"Trencher Accessories",null,null,null,null,"hour",2.4300000000000002]
[378,null,"Plow, Cable","Case MAXI-SNEAKER C (disc. 2003)","24-in","to 33.5",null,"hour",21.68]
[379,8661,"Plow, Cable","Seaman-Parsons DP-60","18-in","to 82",null,"hour",58.43]
[80,8662,"Plow, Cable","Seaman-Parsons DP-100","42-in","to 110",null,"hour",68.83]
[381,8670,"Derrick, Hydraulic Digger","Miscellaneous 60/12- Hydraulic Digger\nDerricks",null,"to 275",null,"hour",27.14]
[382,8671,"Derrick, Hydraulic Digger","Miscellaneous 990/14 - Hydraulic Digger\nDerricks",null,"to 310",null,"hour",48.77]
[383,8672,"Movax SP-60","28-32 ton Head",null,"to 178",null,"hour",135.30000000000001]
[384,"8680-1","Truck, Concrete Mixer","Mixer Capacity = 13 cy","13-CY","to 285",null,"hour",73.66]
[385,8680,"Truck, Fire Aerial Platform","112Ft Ladder","3000gpm/1000 gal Water or Foam","to 600",null,"hour",104.96]
[386,8681,"Truck, Fire, Engine Type-1","1000GPM/300gal Engine, with Pump & Roll",null,"to 420",null,"hour",173.47]
[387,8682,"Truck, Fire, Engine Type-2","500GPM/300gal Engine, with Pump & Roll",null,"to 184",null,"hour",163.55000000000001]
[388,8683,"Truck, Fire, Ladder(48ft)(Type-III)","150gpm/500gal Hose 1-1/2\"D 500' Long",null,"to 238",null,"hour",147.82]
[389,8684,"Truck, Fire","100-ft Ladder",null,"to 230","1500gpm Monitor/nozzle","hour",220.55]
[390,8685,"Truck, Fire, Ladder(48ft)(Type-I)","1000gpm/400gal, 500gpm Master Stream\nHose 2-1/2\"D 1200' Long",null,"to 12",null,"hour",190.81]
[391,8686,"Truck, Fire, Ladder(48ft)(Type-II)","500gpm/300gal, Hose 2-1/2\"D 1000' Long",null,"to 60",null,"hour",162.93]
[392,8687,"Truck, Fire, Support Water Tender S1","300GPM/4000+gal S1 Water Tender",null,"to 90",null,"hour",141.87]
[393,8688,"Truck, Fire, Support Water Tender S2","200GPM/2500+gal S2 Water Tender",null,"to 140",null,"hour",128.24]
[394,8689,"Truck, Fire, Support Water Tender S3","200GPM/1000+gal S3 Water Tender",null,"to 215",null,"hour",97.88]
[395,8690,"Truck, Fire",null,null,"to 95",null,"hour",87.14]
[396,8691,"Truck, Fire",null,null,"to 95",null,"hour",92.4]
[397,8692,"Truck, Fire",null,null,"to 118",null,"hour",100.49]
[398,8693,"Truck, Fire",null,null,"to 10",null,"hour",104.13]
[399,8694,"Truck, Fire Ladder",null,null,"to 160",null,"hour",149.91999999999999]
[400,8695,"Truck, Fire Ladder",null,null,"to 240",null,"hour",181.43]
[401,8696,"Truck, Fire",null,null,"to 311",null,"hour",119.39]
[402,8697,"Truck, Fire, Tactical Water Tender T1","250GPM/2000+gal",null,"to 400",null,"hour",148.07]
[403,8698,"Truck, Fire, Tactical Water Tender T2","250GPM/1000+gal",null,"to 500",null,"hour",127.21]
[404,8699,"Truck, Fire, Engine Type-3","150GPM/500gal Engine, with Pump & Roll",null,"to 610",null,"hour",156.74]
[405,8700,"Truck, Flatbed","Miscellaneous 4X2 15KGVW DSL",null,"to 200",null,"hour",32.35]
[406,8701,"Truck, Flatbed","Miscellaneous 4X2 25KGVW GAS",null,"to 275",null,"hour",47.12]
[407,"8701-1","Truck, Flatbed","Miscellaneous 4X2 25KGVW DSL",null,"to 200",null,"hour",35.58]
[408,8702,"Truck, Flatbed","Miscellaneous 4X2 30KGVW DSL",null,"to 217",null,"hour",40.299999999999997]
[409,8703,"Truck, Flatbed","Miscellaneous 6X4 45KGVW DSL",null,"to 380",null,"hour",68.31]
[410,8708,"Trailer, semi","48ft spread axle flatbed",null,"NA",null,"hour",10.74]
[411,8709,"Trailer, semi","Enclosed 48ft, 2 axle trailer",null,"NA",null,"hour",12.17]
[412,8710,"Trailer, semi",null,null,0,null,"hour",12.4]
[413,8711,"Flat bed utility trailer","Non-Tilt Deck Utility Trailers - TOW 2 1 6",null,"NA",null,"hour",2.87]
[414,"8711-1","Sewer Camera Inspection Truck",null,null,null,null,"hour",17.11]
[415,"8711-2","Sewer Camera Inspection Truck","Aries Pathfinder System Control Center, Work\nStation",null,"N/A",null,"hour",104.82]
[416,8712,"Cleaner, Sewer/Catch Basin","Miscellaneous 5-P - Sewer/Catch Basin Cleaner","4 in Discharge Diameter",null,"Power Takeoff","hour",20.62]
[null,null,null,"For Truck Mounting"]
[null,"A","B","C","D","E","F","G","H"]
[null,"Cost Code","Equipment","Specifications/Manufacturer","Capacity or Size","HP","Notes","Unit","2023 Rates"]
[417,8713,"Cleaner, Sewer/Catch Basin","Miscellaneous 14-P - Sewer/Catch Basin","6 In Discharge Diameter",null,"Power Takeoff","hour",27.42]
[null,null,null,"Cleaner For Truck Mounting"]
[418,8714,"Combined Sewer Cleaning","Vacuum Truck 800 Gal Spoils/400 Gal Water",null,"to 74",null,"hour",32.81]
[419,"8714-H","Combined Sewer Cleaning (Accessory","Miscellaneous SH-4/25","4-IN","N/A","50-FT of 4-IN hoses @$0.60/Hour for Vac Truck","hour",0.32]
[null,null,"Hoses)"]
[420,"8714-1","Vector Combine Vaccum Truck",null,"15 Cu Yd","N/A",null,"hour",107.72]
[421,"8714-2","Combined Sewer Cleaning",null,"1500 gal Water","N/A",null,"hour",109.97]
[422,"8714-3","Combined Sewer Cleaning",null,"500-1500 gals","N/A",null,"hour",97.76]
[423,8715,"Truck, Hydro Vac","500-gal debris tank;",null,"N/A",null,"hour",22.92]
[424,8716,"Leaf Vac",null,null,"N/A",null,"hour",65.58]
[425,8717,"Truck, Vacuum",null,null,"N/A",null,"hour",95.06]
[426,8718,"Combined Sewer Cleaning",null,"500-1500 gals","to 370",null,"hour",97.76]
[427,8719,"Litter Picker","Miscellaneous TRAC MOUNT ENG DRIV","Broom Length 72.0 in","to 18",null,"hour",8.3800000000000008]
[428,8720,"Truck, Dump","Miscellaneous 4X4 8YD 30KGVW DSL","7-CY","to 217",null,"hour",55.98]
[429,8721,"Truck, Dump","Miscellaneous 6X4 10YD 40KGVW","8-10-CY","to 315",null,"hour",74.83]
[430,8722,"Truck, Dump","Miscellaneous 6X4 12YD 50KGVW","12-CY","to 400",null,"hour",94.94]
[431,8723,"Truck, Dump",null,"14-CY","to 400",null,"hour",96.03]
[432,8724,"Truck, Dump, Off Highway","Bell B40E (articulated)","24-CY","to 436",null,"hour",174.29]
[433,8725,"Truck, Dump","Miscellaneous 8X4 18YD 85KGVW","18 CY","to 400",null,"Hour",117.13]
[434,8730,"Truck, Garbage",null,null,"to 255",null,"Hour",61.69]
[435,8731,"Truck, Garbage",null,null,"to 325",null,"Hour",70.7]
[436,8733,"E=BAM Services",null,null,"N/A",null,"Hour",3.8]
[437,8734,"Attentuator, Safety","Miscellaneous ALUMINUM-2",null,"N/A",null,"Hour",5.19]
[438,8735,"Truck, Attenuator",null,null,"N/A",null,"Hour",4.82]
[439,8736,"Truck, Tow","Freightliner M2 106 4x2 Diesel (disc. 2015)","GW 26000 lbs","to 175",null,"Hour",54.63]
[440,8744,"Van, Custom",null,null,"to 350",null,"Hour",22.74]
[441,8745,"Van, step","Freightliner 4500 Sprinter 4x2 Diesel (2021)",null,"to 300",null,"Hour",35.6]
[442,8746,"Van-up to 15 passenger","GMC Savana Passenger Van (disc. 2010)",null,"225-300",null,"Hour",35.19]
[443,8747,"Van-up to 15 passenger","GMC Savana 3500 LS Passenger Van (disc.\n2020)",null,"to 265",null,"Hour",40.5]
[444,8748,"Van-cargo","Chevrolet City Express Cargo Van (disc. 2018)",null,"225-300",null,"Hour",26.01]
[445,8749,"Van-cargo","Chevrolet Express Cargo Van (2022)",null,null,null,"Hour",32.64]
[446,8750,"Vehicle, Small",null,null,"to 30",null,"Hour",7.94]
[447,8753,"Vehicle, Recreational",null,null,"to 10",null,"Hour",3.56]
[448,8754,"Motor Coach","GVW=50534, 56 Passenger + 1-Driver",null,"to 430",null,"Hour",79.22]
[449,8755,"Golf Cart",null,null,0,null,"Hour",4.71]
[450,8761,"Vibrator, Concrete","Miscellaneous 2-7/21 - Motor-in-Head",null,"to 2",null,"Hour",1.47]
[451,8770,"Welder, Portable","Miscellaneous GAS 180 DC-CC",null,"to 13",null,"Hour",5.43]
[452,8771,"Welder, Portable","Miscellaneous DIESEL 300 DC-CC",null,"to 33",null,"Hour",11.28]
[453,8772,"Welder, Portable","Miscellaneous GAS 350 DC-CC/CV",null,"to 52",null,"Hour",19.07]
[454,8773,"Welder, Portable","Miscellaneous DIESEL 600 DC-CC/CV DU-OP",null,"to 42",null,"Hour",15.41]
[455,8780,"Truck, Water","Miscellaneous DSL 4X2 2500",null,"to 150",null,"Hour",37.65]
[456,8781,"Truck, Water","Miscellaneous BB2 DSL 6X4 4000 (disc. 1994)",null,"to 250",null,"Hour",61.16]
[457,8789,"Truck, Tractor","On-Highway Truck Tractors 45,001 - 60,000\nGVW",null,"to 400",null,"Hour",87.02]
[458,8790,"Truck, Tractor","On-Highway Truck Tractor - 4X2 25KGVW GAS",null,"to 295",null,"Hour",57.92]
[459,8791,"Truck, Tractor","On-Highway Truck Tractor - 4X2 35KGVW DSL",null,"to 329",null,"Hour",70.72]
[460,8792,"Truck, Tractor","On-Highway Truck Tractor - 6X4 45KGVW DSL",null,"to 380",null,"Hour",81.91]
[461,8793,"Truck","Ford F-450 Cutaway Truck (disc. 2018)",null,"to 390",null,"Hour",80.27]
[462,8794,"Truck, Freight","Dodge Ram Chassis 5500",null,"to 275",null,"Hour",28.84]
[463,8795,"Truck, backhoe carrier","Miscellaneous 4X2 25KGVW DSL",null,"to 380",null,"Hour",35.58]
[464,8796,"Truck, freight","Enclosed w/lift gate. Heavy duty, class 7",null,null,null,"Hour",38.94]
[465,8797,"Truck, freight","M2-106 4x2 Diesel (disc. 2015)",null,"to 250",null,"Hour",54.63]
[466,8798,"Truck","Miscellaneous 4X2 30KGVW DSL",null,"to 300",null,"Hour",40.299999999999997]
[467,8799,"Truck","Miscellaneous 6X4 43KGVW DSL",null,null,null,"Hour",50.95]
[468,8800,"Truck, Pickup",null,null,null,"GSA 2023 Mileage Rate","Mile",0.66]
[null,"A","B","C","D","E","F","G","H"]
[null,"Cost Code","Equipment","Specifications/Manufacturer","Capacity or Size","HP","Notes","Unit","2023 Rates"]
[469,8801,"Truck, Pickup","Miscellaneous 4X2 1/2 160 CONV DSL",160,"to 160",null,"Hour",16.68]
[470,8802,"Truck, Pickup","4X2 1 195 CONV DSL",195,"to 195",null,"Hour",19.91]
[471,8803,"Truck, Pickup","4X2 1 1/4 360 CONV DSL",360,"to 360",null,"Hour",33.03]
[472,8804,"Truck, Pickup","4X2 1 1/2 300 CONV DIESEL",310,"to 310",null,"Hour",29.56]
[473,8805,"Truck, Pickup","Miscellaneous 4X2 1 3/4 360 CONV DSL",360,"to 360",null,"Hour",34.090000000000003]
[474,8806,"Truck, Pickup","Miscellaneous 4X2 3/4 160 CONV DSL",160,"to 160",null,"Hour",17]
[475,8807,"Truck, Pickup","Miscellaneous 4X4 3/4 285 CREW GAS",285,"to 285",null,"Hour",27.78]
[476,8808,"Truck, Pickup","4X4 1 340 CREW DSL",340,"to 340",null,"Hour",31.81]
[477,8809,"Truck, Pickup","4X4 1 1/4 360 CREW GAS",360,"to 360",null,"Hour",35.450000000000003]
[478,8810,"Truck, Pickup","4X4 1 1/2 362 CREW GAS",362,"to 362",null,"Hour",35.869999999999997]
[479,8811,"Truck, Pickup","4X4 1 3/4 362 CREW GAS",362,"to 362",null,"Hour",36.619999999999997]
[480,8820,"Skidder accessory",null,null,"N/A",null,"Hour",2.17]
[481,8821,"Forklift, accessory",null,null,"N/A",null,"Hour",1.93]
[482,8822,"Truck,  Loader","BARKO 495ML Magnum",null,0,null,"Hour",68.930000000000007]
[483,8823,"Chipper- Wood Recycler","Bandit 2400XP",null,"to 645",null,"Hour",243.59]
[484,8824,"Skidder","Caterpillar 525B (disc. 2006)",160,"to 160",null,"Hour",122.04]
[485,8825,"Skidder","Caterpillar 525C (disc. 2014)",182,"to 182",null,"Hour",143.94999999999999]
[486,8840,"Truck, service",null,null,"215-225",null,"Hour",49.8]
[487,8841,"Truck, fuel","Miscellaneous BB2 Gas 4X2 2000",null,"to 200",null,"Hour",38.94]
[488,8842,"Mobile Command Trailer",null,null,0,null,"Hour",18.25]
[489,8843,"Mobile Response Trailer",null,null,0,null,"Hour",17.190000000000001]
[490,8844,"Mobile Command Center","40-ft long; GVWR: 56000 lbs; 20 kw generator",null,"to 400",null,"Hour",106.68]
[491,8845,"Mobile Command Post Vehicle","22-ft long;",null,"to 340",null,"Hour",39.090000000000003]
[492,8846,"Mobile Command Post Vehicle","25'6\" long; GVWR 19500 lbs; Duramax Diesel",null,"to 325",null,"Hour",25.19]
[493,8847,"Mobile Command Center (Trailer)","42\" long",null,null,null,"Hour",39.270000000000003]
[494,8848,"Mobile Command Center (Trailer)",null,null,null,null,"Hour",62.81]
[495,8849,"Mobile Command Center",null,null,"to 280","Generator Rate not included","Hour",68.61]
[496,8850,"Mobile Command Center","GVWR: 22500 lbs; Diesel",null,"to 260",null,"Hour",58.38]
[497,8851,"Mobile Command Van","Sprinter; GVWR: 11030",null,"to 230","Communication Equipment","Hour",53.01]
[498,8852,"Mobile Command Center",null,null,"to 410",null,"Hour",84.3]
[499,8853,"Mobile Command Center",null,null,"to 410",null,"Hour",56.86]
[500,8854,"Mobile Command Vehicle","GVWR: 54600 lbs",null,"to 450",null,"Hour",122.47]
[501,8870,"Light Tower","Miscellaneous HEAVY DUTY-14","30-FT","to 13.5",null,"Hour",9.65]
[502,8871,"Light Tower","Miscellaneous LIGHT DUTY-7-1/2","20-FT","to 7.5",null,"Hour",5.7]
[503,8872,"Sand Bagger Machine",null,null,"2-4.5",null,"Hour",61.23]
[504,8900,"Helicopter",null,null,"to 420",null,"Hour",578.64]
[505,8901,"Helicopter",null,null,"to 420",null,"Hour",605.89]
[506,8902,"Helicopter","Jet Range III-Helicopter",null,"to 650","Jet Range III-Helicopter","Hour",712.45]
[507,8903,"Helicopter","Long Ranger",null,"to 650","Long Ranger","Hour",725.42]
[508,8904,"Helicopter","Twinranger",null,"to 450","Twinranger","Hour",945.76]
[509,8905,"Helicopter","Model Bell 407 EMS- Ambulance",null,"to 250",null,"Hour",774.84]
[510,8906,"Fixed wing","Model Navajo PA-31",null,"to 310",null,"Hour",590.53]
[511,8907,"Fixed wing","PA-31-350, Navajo Chieftain twin\nengine",null,"to 350",null,"Hour",628.44000000000005]
[512,8908,"Helicopter","Fire Fighter Same as S70C",null,"to 1890","Fire Fighter Same as S70C","Hour",3685.48]
[513,8909,"Helicopter","Fire Fighter",null,"to 1890","Fire Fighter","Hour",6887.91]
[514,8910,"Helicopter","Fire Fighter",null,"to 2850","Fire Fighter","Hour",13452.95]
[515,8911,"Helicopter- light utility","Model  Bell 407GX - 7 seater",null,"to 250","Passenger Aircraft","Hour",768.68]
[516,8912,"Helicopter- light utility","Model Bell 206L- 7 seater",null,null,"Passenger Aircraft","Hour",753.24]
[517,8913,"Helicopter","Model Bell-206L4",null,"to 420",null,"Hour",706.55]
[518,8914,"Fixed wing","Blackhawk King Air B200XP61",null,"to 669",null,"Hour",1633.2]
[519,8915,"Fixed wing","Blackhawk Caravan XP42 A",null,"to 850",null,"Hour",914.57]
[520,8916,"Fixed wing","King Air C90 XP135 A",null,"to 550",null,"Hour",1373.27]
[521,8917,"Aerostar Helicopter","Aerostar 601P",null,"to 290",null,"Hour",578.23]
[null,"A","B","C","D","E","F","G","H"]
[null,"Cost Code","Equipment","Specifications/Manufacturer","Capacity or Size","HP","Notes","Unit","2023 Rates"]
[522,8918,"Huey Helicopter","Engine:1 × Lycoming T53-L-11 turboshaft",null,"to 1100","Travel Range 253 NaticalMiles","Hour",1705.85]
[523,8919,"Helicopter","Utility Bell 429",null,"to 710",null,"Hour",1124.18]
[524,8920,"Helicopter","Commercial Bell Huey II",null,null,null,"Hour",1346.58]
[525,8943,"Wire Puller Machine",null,null,"to 30","Overhead/Underground Wire\nPulling Machine","Hour",24.98]
[526,8944,"Wire Tensioning Machine",null,null,0,"Overhead Wire TensioningMachine","Hour",18.39]
[527,8945,"Aerial Lift","Genie GS-2646","1000 lbs",0,"24 Volt","Hour",25.95]

{"sheet":"LEMA PER DIEM RATES","index":7,"n_rows":38,"n_cols":2,"rows_kept":38,"cut":false,"hidden":false,"merged":[[0,0,0,1],[2,0,2,1],[3,0,3,1],[4,0,4,1],[17,0,17,1]]}
["LEMA Per Diem Rates 2024-2025"]
[]
["MEALS AND INCIDENTAL RATES"]
["The following reimbursement rates for meals and incidentals are maximums, not allowances.  In the event of an audit, must be able to produce receipts substantiating the amount claimed."]
["HR Manual section 2203 – Allowances and Travel Reimbursements provides additional information, including travel timeframes (fractional day of travel, trip of less than 24 hours, trip of more than 24 hours, etc.)."]
["Meal and Incidental Expense Category​","​Effective October 1, 2024: Reimbursement Rate for Actual Expense​"]
["​Breakfast","Up to $16"]
["​Lunch","​Up to $19"]
["​Dinner","​Up to $28"]
["​Incidentals​","​Up to $5"]
["​Total Daily Maximum Allowance​","​Up to $68"]
["First & Last Day of Travel ","Up to $51"]
["2025 Personal Vehicle Mileage Reimbursement Rates","​Effective October 1, 2024: Reimbursement Rate for Actual Expense​"]
["Personal Vehicle (approved Business/travel expense)",0.7]
["Personal Vehicle (state-approved relocation)",0.21]
["Personal Aircraft (per statute mile)",1.75]
[]
["MAXIMUM LODGING REIMBURSEMENT RATES PER NIGHT"]
[]
["​County","​Effective October 1, 2024: Maximum Lodging Reimbursement Rate"]
["​All counties except those listed below","​$110"]
["​Alameda","​$145"]
["​City of Santa Monica","​$273"]
["​Los Angeles","​$191"]
["​Marin","​$153"]
["​Monterey","​$191"]
["​Napa","​$246"]
["​Orange","​$191"]
["​Riverside","​$186"]
["​Sacramento","​$150"]
["San Diego","​$199"]
["​San Francisco","​$272"]
["San Mateo","​$183"]
["​Santa Clara","​$192"]
["​Ventura & Edwards AFB, excluding the city of Santa Monica","​$169​"]
[]
["Note: LEMA reimburses at the current state rate."]
["Please log onto the CALHR website for additional information: https://hrmanual.calhr.ca.gov/Home/ManualItem/1/2203"]

{"sheet":"LEMA MATERIALS","index":8,"n_rows":7,"n_cols":10,"rows_kept":7,"cut":false,"hidden":false,"merged":[[3,1,3,4],[4,1,4,4],[1,1,1,9],[2,1,2,9],[5,1,6,1],[5,2,6,2],[5,5,6,5],[5,6,6,6],[5,7,5,8],[5,9,6,9],[4,7,4,9],[3,7,3,9],[4,5,4,6],[3,5,3,6]]}
[null,null,null,"CalOES - Law Enforcement Mutual Aid Assistance (LEMA) Program "]
[null," "]
[null,"FORCE ACCOUNT MATERIALS SUMMARY RECORD"]
[null,"APPLICANT",null,null,null,"CATEGORY",null,{"$f":"'FILL OUT FIRST - TOC'!E4","v":"Disaster Number (XXXX-DR-STATE):"}]
[null,{"$f":"'FILL OUT FIRST - TOC'!$F$5","v":0},null,null,null,{"$f":"'FILL OUT FIRST - TOC'!$F$6","v":"Law Enforcement Mutual Aid"},null,{"$f":"'FILL OUT FIRST - TOC'!$F$4","v":0}]
[null,"Vendor","Description","Total Invoiced Amount","Total \nClaimed Amount","Date Purchased","Date Used","Source of Data",null,"Comments"]
[null,null,null,{"$f":"SUM(D8:D996)","v":0},{"$f":"SUM(E8:E996)","v":0},null,null,"Invoice #","Stock"]

{"sheet":"RA MATERIALS","index":9,"n_rows":6,"n_cols":10,"rows_kept":6,"cut":false,"hidden":false,"merged":[[4,9,5,9],[0,1,0,9],[1,1,1,9],[2,1,2,4],[2,5,2,6],[2,7,2,9],[3,1,3,4],[3,5,3,6],[3,7,3,9],[4,1,5,1],[4,2,5,2],[4,5,5,5],[4,6,5,6],[4,7,4,8]]}
[null," "]
[null,"FORCE ACCOUNT MATERIALS SUMMARY RECORD"]
[null,"APPLICANT",null,null,null,"CATEGORY",null,{"$f":"'FILL OUT FIRST - TOC'!E4","v":"Disaster Number (XXXX-DR-STATE):"}]
[null,{"$f":"'FILL OUT FIRST - TOC'!$F$5","v":0},null,null,null,{"$f":"'FILL OUT FIRST - TOC'!$F$6","v":"Law Enforcement Mutual Aid"},null,{"$f":"'FILL OUT FIRST - TOC'!$F$4","v":0}]
[null,"Vendor","Description","Total Invoiced Amount","Total \nClaimed Amount","Date Purchased","Date Used","Source of Data",null,"Comments"]
[null,null,null,{"$f":"SUM(D7:D995)","v":0},{"$f":"SUM(E7:E995)","v":0},null,null,"Invoice #","Stock"]

{"sheet":"COST SUMMARY ROLL-UP","index":10,"n_rows":22,"n_cols":10,"rows_kept":22,"cut":false,"hidden":false,"merged":[[1,2,1,9],[3,2,3,9],[2,2,2,9],[8,4,8,8],[6,4,6,8],[4,8,4,9],[5,6,5,7],[4,6,4,7],[7,4,7,8],[5,8,5,9],[4,2,4,5],[5,2,5,5],[9,4,9,8],[10,4,10,8],[11,4,11,8],[12,4,12,8],[13,4,13,8],[22,2,30,9],[21,2,21,9],[19,8,20,9],[16,2,17,9],[14,4,14,8],[15,4,15,8],[18,2,18,7],[18,8,18,9],[19,2,20,7]]}
[]
[null,null,"CalOES - Law Enforcement Mutual Aid Assistance (LEMA) Program"]
[null,null," "]
[null,null,"COST SUMMARY ROLL-UP"]
[null,null,"APPLICANT",null,null,null,"CATEGORY",null,{"$f":"'FILL OUT FIRST - TOC'!E4","v":"Disaster Number (XXXX-DR-STATE):"}]
[null,null,{"$f":"'FILL OUT FIRST - TOC'!$F$5","v":0},null,null,null,{"$f":"'FILL OUT FIRST - TOC'!$F$6","v":"Law Enforcement Mutual Aid"},null,{"$f":"'FILL OUT FIRST - TOC'!$F$4","v":0}]
[null,null,"CATEGORY","CLAIM COST","          COMMENTS",null,null,null,null,"ELIGIBLE COSTS"]
[null,null,"FORCE ACCOUNT LABOR OVERTIME TIME",{"$f":"LABOR!AE7","v":0},null,null,null,null,null,{"$f":"LABOR!AE7","v":0}]
[null,null,"FORCE ACCOUNT LEMA EQUIPMENT",{"$f":"'LEMA EQUIPMENT'!AE9","v":0},null,null,null,null,null,{"$f":"'LEMA EQUIPMENT'!AE9","v":0}]
[null,null,"LEMA MATERIALS",{"$f":"'LEMA MATERIALS'!D7","v":0},null,null,null,null,null,{"$f":"'LEMA MATERIALS'!E7","v":0}]
[null,null,"LEMA TOTAL",{"$f":"SUM(D8:D10)","v":0},null,null,null,null,null,{"$f":"SUM(J8:J10)","v":0}]
[null,null,"FORCE ACCOUNT LABOR REGULAR TIME/OVERTIME",{"$f":"LABOR!AE6","v":0},null,null,null,null,null,{"$f":"LABOR!AE6","v":0}]
[null,null,"FORCE ACCOUNT RA EQUIPMENT",{"$f":"'RA EQUIPMENT'!AE8","v":0},null,null,null,null,null,{"$f":"'RA EQUIPMENT'!AE8","v":0}]
[null,null,"RA MATERIALS",{"$f":"'RA MATERIALS'!D6","v":0},null,null,null,null,null,{"$f":"'RA MATERIALS'!E6","v":0}]
[null,null,"RA TOTAL",{"$f":"SUM(D12:D14)","v":0},null,null,null,null,null,{"$f":"SUM(J12:J14)","v":0}]
[null,null,"GRAND TOTAL",{"$f":"D11+D15","v":0},null,null,null,null,null,{"$f":"J11+J15","v":0}]
[null,null,"I certify that the above information was transcribed from timesheets, payroll records, equipment log, invoices, stock records or other documents which are available for audit."]
[]
[null,null,"Certified by:",null,null,null,null,null,"Date:"]
[null,null,{"$f":"'FILL OUT FIRST - TOC'!F16","v":" "},null,null,null,null,null," "]
[]
[null,null,"Applicant's records have been reviewed and found correct with the exceptions as noted."]

{"sheet":"LEMA INVOICE","index":11,"n_rows":22,"n_cols":5,"rows_kept":22,"cut":false,"hidden":false,"merged":[[20,1,20,4],[21,1,21,4],[0,3,0,4],[7,3,7,4],[13,1,13,2],[14,1,14,2]]}
[null,"Add Logo",null,"INVOICE"]
[null,{"$f":"'FILL OUT FIRST - TOC'!F10","v":" "}]
[null,{"$f":"'FILL OUT FIRST - TOC'!F11","v":" "}]
[null,{"$f":"'FILL OUT FIRST - TOC'!F12","v":" "},null,"INVOICE NO."," "]
[null,{"$f":"'FILL OUT FIRST - TOC'!F13","v":" "},null,"DATE"," "]
[null,{"$f":"'FILL OUT FIRST - TOC'!F14","v":" "},null,"RESOURCE TYPE"]
[null,{"$f":"'FILL OUT FIRST - TOC'!F15","v":" "}]
[null,"TO:                        CalOES - Law Enforcement Branch"]
[null,"3650 Schriever Ave"]
[null,"Mather, CA.  95655"]
[null,"Attn:  LEMA Assistance Unit"]
[]
[null," Email:  LEMAFUND@caloes.ca.gov"]
[null," ",null,"PAYMENT TERMS"]
[null,"XXXXX Fire- Mutual Aid Response",null,"Due on receipt"]
[null,"DESCRIPTION","QUANTITY","TOTAL"]
[null,"Force Account Labor - Overtime",{"$f":"LABOR!AA7","v":0},{"$f":"LABOR!AE7","v":0}]
[null,"Equipment/Fuel/Mileage",{"$f":"'LEMA EQUIPMENT'!AD9","v":0},{"$f":"'LEMA EQUIPMENT'!AE9","v":0}]
[null,"Materials/Supplies/Food",{"$f":"'LEMA MATERIALS'!D7","v":0},{"$f":"'LEMA MATERIALS'!E7","v":0}]
[null,null,{"$f":"SUM(C17:C19)","v":0},{"$f":"SUBTOTAL(109,Data[TOTAL])","v":0}]
[null,{"$f":"\"Make all checks payable to \"&Company_Name&\".\"","v":"Make all checks payable to  ."}]
[null," THANK YOU FOR YOUR BUSINESS!"]

{"sheet":"RA INVOICE","index":12,"n_rows":22,"n_cols":5,"rows_kept":22,"cut":false,"hidden":false,"merged":[[21,1,21,4],[0,3,0,4],[7,3,7,4],[13,1,13,2],[14,1,14,2],[20,1,20,4]]}
[null,"Add Logo",null,"INVOICE"]
[null,{"$f":"'FILL OUT FIRST - TOC'!F10","v":" "}]
[null,{"$f":"'FILL OUT FIRST - TOC'!F11","v":" "}]
[null,{"$f":"'FILL OUT FIRST - TOC'!F12","v":" "},null,"INVOICE NO."," "]
[null,{"$f":"'FILL OUT FIRST - TOC'!F13","v":" "},null,"DATE"," "]
[null,{"$f":"'FILL OUT FIRST - TOC'!F14","v":" "},null,"RESOURCE TYPE"]
[null,{"$f":"'FILL OUT FIRST - TOC'!F15","v":" "}]
[null,"TO:                        "]
[]
[]
[]
[]
[]
[null," ",null,"PAYMENT TERMS"]
[null,"XXXXX Fire- Mutual Aid Response",null,"Due on receipt"]
[null,"DESCRIPTION","QUANTITY","TOTAL"]
[null,"Force Account Labor - Straight Time/Overtime",{"$f":"LABOR!AA6","v":0},{"$f":"LABOR!AE6","v":0}]
[null,"Equipment/Fuel/Mileage",{"$f":"'RA EQUIPMENT'!AD8","v":0},{"$f":"'RA EQUIPMENT'!AE8","v":0}]
[null,"Materials/Supplies/Food",null,{"$f":"'RA MATERIALS'!E6","v":0}]
[null,null,null,{"$f":"SUBTOTAL(109,Data3[TOTAL])","v":0}]
[null,{"$f":"\"Make all checks payable to \"&Company_Name&\".\"","v":"Make all checks payable to  ."}]
[null," THANK YOU FOR YOUR BUSINESS!"]

{"sheet":"List Selections","index":13,"n_rows":6,"n_cols":1,"rows_kept":6,"cut":false,"hidden":true,"merged":[]}
[]
["Emergency Management Mutual Aid"]
["Law Enforcement Mutual Aid"]
["Public Health Mutual Aid"]
["EMS Mutual Aid"]
["Other Specify Below"]